Workbook

Sheet Instructions
A1: Important Read carefully First: Must only run the following sequence of steps to be consistent
A3: 1. To change the realizations for either case spreadsheet you must do the following in the spreadsheet with the case you are running
A4: 2. In this case the news headlines and future spot rates of interest must be consistent with each other
A5: 3. In the case spreadsheet use the Function 9 key to generate a new state realizations
A6: 4. To free the realizations click on Run freeze (Ctrl f) -- this freezes the realizations
A7: 3. Function 9 to update headlines and interest rates (can be done several times to check headlines, but underlying state is frozen)
A8: 4. Run update divs (Ctrl u) builds correct rates given freeze
A10: The above generates new paths for the economy with consistent headlines

Sheet GC2
A1: Number of Securities | B1: 7 | C1: Name | D1: Cp Bnd | E1: Zero 2 | F1: Zero 3 | G1: Zero 4 | H1: Zero 5 | I1: Stock1 | J1: Stock2 | Q1: ***Important Note: Must only run the following sequence of steps to be consistent
A2: Maximum Number of Trials | B2: 10 | C2: Security Type | D2: Bond | E2: Bond | F2: Bond | G2: Bond | H2: Bond | I2: Stock | J2: Stock | Q2: 1. Function 9 generate a new state (S2 draws)
A3: Number of Periods per Trial | B3: 5 | C3: Price Quotes | D3: Endogenous | E3: Endogenous | F3: Endogenous | G3: Endogenous | H3: Endogenous | I3: Endogenous | J3: Endogenous | Q3: 2. Run freeze (Ctrl f) -- this freezes the realizations
A4: Period Length (seconds) | B4: 280/280/280/280/0 | C4: Start Life | D4: 1 | E4: 1 | F4: 1 | G4: 1 | H4: 1 | I4: 1 | J4: 1 | Q4: 3. Function 9 to update headlines and interest rates (can be done several times to check headlines, but underlying state is frozen)
A5: Maximum Number of Traders | B5: 60 | C5: End Life | D5: 5 | E5: 2 | F5: 3 | G5: 4 | H5: 5 | I5: 5 | J5: 5 | Q5: 4. Run update divs (Ctrl u) builds correct rates given freeze
A6: Number of Trader Types | B6: 2 | C6: Short Selling | D6: Yes | E6: Yes | F6: Yes | G6: Yes | H6: Yes | I6: Yes | J6: Yes
A7: Market Depth | B7: 20 | C7: Quote to Price Formula | D7: Quote | E7: Quote | F7: Quote | G7: Quote | H7: Quote | I7: Quote | J7: Quote
A8: Depth Displayed | B8: 10 | C8: Information | D8: Yes | E8: Yes | F8: Yes | G8: Yes | H8: Yes | I8: No | J8: No | AD8: Time | AE8: 300
A9: Borrowing Allowed | B9: Yes | AD9: Time periods | AE9: Precision
A10: Last Row with Exogenous Prices | AD10: 0.3 | AE10: 12
A11: Number of Information Types | B11: 1 | AE11: 10
A12: Last Row with Information | B12: 270 | AE12: 8
AE13: 6 | AI13: Exogenous Rates
AE14: 4 | AI14: 0.01 | AJ14: 0.01
AI15: 0.05 | AJ15: 0.05
AI16: =+(AI15-AI14)/10 -> 0.004 | AJ16: =+(AJ15-AJ14)/10 -> 0.004
A17: Recalculate | B17: No | C17: Autotrade | D17: Yes | E17: Yes | F17: Yes | G17: Yes | H17: Yes | I17: Yes | J17: Yes
AD18: 280
B19: testx/testy/testz | AJ19: Work area
A20: Trader Data | B20: Type 1 | C20: Type 2 | D20: Payoff and Settlement Data | E20: Security 1 | F20: Security 2 | G20: Security 3 | H20: Security 4 | I20: Security 5 | J20: Security 6 | K20: Security 7 | L20: Interest Rate | M20: Exogenous Prices | N20: Time into Period | O20: Cp Bnd Bid | P20: Cp Bnd Ask | Q20: Zero1 Bid | R20: Zero1 Ask | S20: Zero2 Bid | T20: Zero2 Ask | U20: Zero3 Bid | V20: Zero3 Ask | W20: Zero4 Bid | X20: Zero4 Ask | Y20: Stock1Bid | Z20: Stock1Ask | AA20: Stock2Bid | AB20: Stock2Ask | AC20: Information | AD20: Time into P | AE20: Rate- Info1 | AF20: Rate-Info2 | AG20: Rate-Info3 | AH20: Rate-Info4 | AI20: Rate-Info4 | AJ20: Freeze Area | AK20: S2 Draws | AL20: S1 Payoff | AO20: Precision
A21: Cash | B21: =+B96 -> 3952875.9 | C21: =+C96 -> 6064355.748 | D21: Trial 1 | E21: 5 | F21: 0 | G21: 0 | H21: 0 | I21: 0 | J21: =1000*$L21 -> 19.99999955 | K21: =1000*(0.06-$L21) -> 40.00000045 | L21: 0.01999999955 | AC21: Trial 1 | AD21: =+(BF21/300)*$AD$18 -> 0 | AE21: =+B02Clue1(INT($AJ21+RAND()*$AO21)) -> Inventory buildup points to signs of recession | AF21: =+$AE21 -> Inventory buildup points to signs of recession | AG21: Inventory buildup points to signs of recession | AH21: Inventory buildup points to signs of recession | AI21: Inventory buildup points to signs of recession | AJ21: 2 | AK21: =INT(1+RAND()*10) -> 4 | AL21: =+$AI$14+(AJ21-1)*$AI$16+$AI$16*RAND() -> 0.0144712455 | AO21: 7 | BF21: 0
A22: Endow 1 | B22: 100000 | C22: =-B22 -> -100000 | E22: 5 | F22: 100 | G22: 0 | H22: 0 | I22: 0 | J22: =1000*$L22 -> 15.93983546 | K22: =1000*(0.06-$L22) -> 44.06016454 | L22: 0.01593983546 | AD22: =+(BF22/300)*$AD$18 -> 28 | AE22: =+B02Clue1(INT($AJ22+RAND()*$AO22)) -> Leading economic indicators match expectations | AF22: Leading economic indicators match expectations | AG22: Leading economic indicators match expectations | AH22: Leading economic indicators match expectations | AI22: Leading economic indicators match expectations | AJ22: 2 | AK22: =+AK21 -> 4 | AL22: 0.0144712455 | AO22: 5 | BF22: =+INT($AE$8*$AD$10*RAND()+BF21) -> 30
A23: Endow 2 | B23: 107900 | C23: =-B23 -> -107900 | E23: 5 | F23: 0 | G23: 100 | H23: 0 | I23: 0 | J23: =1000*$L23 -> 17.92068966 | K23: 42.07931034 | L23: 0.01792068966 | AD23: =+(BF23/300)*$AD$18 -> 84.93333333 | AE23: =+B02Clue1(INT($AJ23+RAND()*$AO23)) -> Inventory buildup points to signs of recession | AF23: Inventory buildup points to signs of recession | AG23: Inventory buildup points to signs of recession | AH23: Inventory buildup points to signs of recession | AI23: Inventory buildup points to signs of recession | AJ23: 2 | AK23: 4 | AL23: 0.0144712455 | AO23: 3 | BF23: =+INT($AE$8*$AD$10*RAND()+BF22) -> 91
A24: Endow 3 | B24: 110000 | C24: =B24 -> 110000 | E24: 5 | F24: 0 | G24: 0 | H24: 100 | I24: 0 | J24: =1000*$L24 -> 22.24468812 | K24: 37.75531188 | L24: 0.02224468812 | AD24: 148.4 | AE24: =+B02Clue1(INT($AJ24+RAND()*$AO24)) -> Consumer confidence falls, signalling decline in spending | AF24: Consumer confidence falls, signalling decline in spending | AG24: Consumer confidence falls, signalling decline in spending | AH24: Consumer confidence falls, signalling decline in spending | AI24: Consumer confidence falls, signalling decline in spending | AJ24: 2 | AK24: 4 | AL24: 0.0144712455 | AO24: 2 | BF24: =+INT($AE$8*$AD$10*RAND()+BF23) -> 159
A25: Endow 4 | B25: -115600 | C25: =-B25 -> 115600 | E25: 105 | F25: 0 | G25: 0 | H25: 0 | I25: 100 | J25: =10000*$L25 -> 221.0990712 | K25: =10000*(0.06-$L25) -> 378.9009288 | L25: 0.02210990712 | AD25: 173.6 | AE25: =+B02Clue1(INT($AJ25+RAND()*$AO25)) -> Inventory buildup points to signs of recession | AF25: Inventory buildup points to signs of recession | AG25: Inventory buildup points to signs of recession | AH25: Inventory buildup points to signs of recession | AI25: Inventory buildup points to signs of recession | AJ25: 2 | AK25: 4 | AL25: 0.0144712455 | AO25: 1 | BF25: =+INT($AE$8*$AD$10*RAND()+BF24) -> 186
A26: Endow 5 | B26: -115600 | C26: =-B26 -> 115600 | D26: Trial 2 | E26: 5 | F26: 0 | G26: 0 | H26: 0 | I26: 0 | J26: =1000*$L26 -> 19.99999955 | K26: =1000*(0.06-$L26) -> 40.00000045 | L26: 0.01999999955 | AC26: Period2 | AD26: 0 | AE26: =+B02Clue1(INT(0.6*$AJ26+0.4*$AJ21+RAND()*$AO26)) -> Consumer spending suggests that a declining trend has started. | AF26: Consumer spending suggests that a declining trend has started. | AG26: Consumer spending suggests that a declining trend has started. | AH26: Consumer spending suggests that a declining trend has started. | AI26: Consumer spending suggests that a declining trend has started. | AJ26: 2 | AK26: =INT(0.4*AK21+0.6*(1+RAND()*10)) -> 2 | AL26: =+$AI$14+(AJ26-1)*$AI$16+$AI$16*RAND() -> 0.01550261782 | AO26: =+AO21 -> 7 | BF26: 0
A27: Endow 6 | B27: 0 | C27: 0 | E27: 5 | F27: 100 | G27: 0 | H27: 0 | I27: 0 | J27: =1000*$L27 -> 26.7181471 | K27: 33.2818529 | L27: 0.0267181471 | AD27: 60.66666667 | AE27: =+B02Clue1(INT(0.6*$AJ27+0.4*$AJ22+RAND()*$AO27)) -> Early trend in recession, forward indicators raise new questions about the economy | AF27: Early trend in recession, forward indicators raise new questions about the economy | AG27: Early trend in recession, forward indicators raise new questions about the economy | AH27: Early trend in recession, forward indicators raise new questions about the economy | AI27: Early trend in recession, forward indicators raise new questions about the economy | AJ27: 2 | AK27: =+AK26 -> 2 | AL27: =+AL26 -> 0.01550261782 | AO27: =+AO22 -> 5 | BF27: =+INT($AE$8*$AD$10*RAND()+BF26) -> 65
A28: Endow 7 | B28: 0 | C28: 0 | E28: 5 | F28: 0 | G28: 100 | H28: 0 | I28: 0 | J28: =1000*$L28 -> 33.83910656 | K28: 26.16089344 | L28: 0.03383910656 | AD28: 86.8 | AE28: Inventory buildup points to signs of recession | AF28: Inventory buildup points to signs of recession | AG28: Inventory buildup points to signs of recession | AH28: Inventory buildup points to signs of recession | AI28: Inventory buildup points to signs of recession | AJ28: 2 | AK28: =+AK27 -> 2 | AL28: =+AL27 -> 0.01550261782 | AO28: 3 | BF28: =+INT($AE$8*$AD$10*RAND()+BF27) -> 93
A29: Rights 1 | B29: 0 | C29: 0 | E29: 5 | F29: 0 | G29: 0 | H29: 100 | I29: 0 | J29: =1000*$L29 -> 33.45738724 | K29: 26.54261276 | L29: 0.03345738724 | AD29: 97.06666667 | AE29: Consumer spending suggests that a declining trend has started. | AF29: Consumer spending suggests that a declining trend has started. | AG29: Consumer spending suggests that a declining trend has started. | AH29: Consumer spending suggests that a declining trend has started. | AI29: Consumer spending suggests that a declining trend has started. | AJ29: 2 | AK29: =+AK28 -> 2 | AL29: 0.01550261782 | AO29: 2 | BF29: =+INT($AE$8*$AD$10*RAND()+BF28) -> 104
A30: Rights 2 | B30: 0 | C30: 0 | E30: 105 | F30: 0 | G30: 0 | H30: 0 | I30: 100 | J30: =10000*$L30 -> 371.3640198 | K30: =10000*(0.06-$L30) -> 228.6359802 | L30: 0.03713640198 | AD30: 115.7333333 | AE30: Consumer confidence falls, signalling decline in spending | AF30: Consumer confidence falls, signalling decline in spending | AG30: Consumer confidence falls, signalling decline in spending | AH30: Consumer confidence falls, signalling decline in spending | AI30: Consumer confidence falls, signalling decline in spending | AJ30: 2 | AK30: =+AK29 -> 2 | AL30: 0.01550261782 | AO30: 1 | BF30: =+INT($AE$8*$AD$10*RAND()+BF29) -> 124
A31: Rights 3 | B31: 0 | C31: 0 | D31: Trial 3 | E31: 5 | F31: 0 | G31: 0 | H31: 0 | I31: 0 | J31: =1000*$L31 -> 19.99999955 | K31: =1000*(0.06-$L31) -> 40.00000045 | L31: 0.01999999955 | AC31: Period3 | AD31: 0 | AE31: =+B02Clue1(INT(0.6*$AJ31+0.4*$AJ26+RAND()*$AO31)) -> Sharp jump in strong GDP forecasts | AF31: Sharp jump in strong GDP forecasts | AG31: Sharp jump in strong GDP forecasts | AH31: Sharp jump in strong GDP forecasts | AI31: Sharp jump in strong GDP forecasts | AJ31: 4 | AK31: =INT(0.4*AK26+0.6*(1+RAND()*10)) -> 2 | AL31: =+$AI$14+(AJ31-1)*$AI$16+$AI$16*RAND() -> 0.02535272398 | AO31: =+AO26 -> 7 | BF31: 0
A32: Rights 4 | B32: 0 | C32: 0 | E32: 5 | F32: 100 | G32: 0 | H32: 0 | I32: 0 | J32: =1000*$L32 -> 18.05366948 | K32: =1000*(0.06-$L32) -> 41.94633052 | L32: 0.01805366948 | AD32: 54.13333333 | AE32: Fed chairman congressional testimony provides optimism | AF32: Fed chairman congressional testimony provides optimism | AG32: Fed chairman congressional testimony provides optimism | AH32: Fed chairman congressional testimony provides optimism | AI32: Fed chairman congressional testimony provides optimism | AJ32: 4 | AK32: =+AK31 -> 2 | AL32: 0.02535272398 | AO32: 5 | BF32: =+INT($AE$8*$AD$10*RAND()+BF31) -> 58
A33: Rights 5 | B33: 0 | C33: 0 | E33: 5 | F33: 0 | G33: 100 | H33: 0 | I33: 0 | J33: =1000*$L33 -> 33.41057152 | K33: =1000*(0.06-$L33) -> 26.58942848 | L33: 0.03341057152 | AD33: 123.2 | AE33: Stock funds experiencing mild selling | AF33: Stock funds experiencing mild selling | AG33: Stock funds experiencing mild selling | AH33: Stock funds experiencing mild selling | AI33: Stock funds experiencing mild selling | AJ33: 4 | AK33: =+AK32 -> 2 | AL33: 0.02535272398 | AO33: 3 | BF33: =+INT($AE$8*$AD$10*RAND()+BF32) -> 132
A34: Rights 6 | B34: 0 | C34: 0 | E34: 5 | F34: 0 | G34: 0 | H34: 100 | I34: 0 | J34: =1000*$L34 -> 23.70884456 | K34: =1000*(0.06-$L34) -> 36.29115544 | L34: 0.02370884456 | AD34: 203.4666667 | AE34: Early trend in recession, forward indicators raise new questions about the economy | AF34: Early trend in recession, forward indicators raise new questions about the economy | AG34: Early trend in recession, forward indicators raise new questions about the economy | AH34: Early trend in recession, forward indicators raise new questions about the economy | AI34: Early trend in recession, forward indicators raise new questions about the economy | AJ34: 4 | AK34: =+AK33 -> 2 | AL34: 0.02535272398 | AO34: 2 | BF34: =+INT($AE$8*$AD$10*RAND()+BF33) -> 218
A35: Rights 7 | B35: 0 | C35: 0 | E35: 105 | F35: 0 | G35: 0 | H35: 0 | I35: 100 | J35: =10000*$L35 -> 247.8147484 | K35: =10000*(0.06-$L35) -> 352.1852516 | L35: 0.02478147484 | AD35: 271.6 | AE35: Consumer spending suggests that a declining trend has started. | AF35: Consumer spending suggests that a declining trend has started. | AG35: Consumer spending suggests that a declining trend has started. | AH35: Consumer spending suggests that a declining trend has started. | AI35: Consumer spending suggests that a declining trend has started. | AJ35: 4 | AK35: =+AK34 -> 2 | AL35: 0.02535272398 | AO35: 1 | BF35: =+INT($AE$8*$AD$10*RAND()+BF34) -> 291
A36: Lower Bound | B36: -100000000 | C36: -100000000 | D36: Trial 4 | E36: 5 | F36: 0 | G36: 0 | H36: 0 | I36: 0 | J36: =1000*$L36 -> 19.99999955 | K36: =1000*(0.06-$L36) -> 40.00000045 | L36: 0.01999999955 | AC36: Period4 | AD36: 0 | AE36: =+B02Clue1(INT(0.6*$AJ36+0.4*$AJ31+RAND()*$AO36)) -> Geopolitical concerns starting to worry investors | AF36: Geopolitical concerns starting to worry investors | AG36: Geopolitical concerns starting to worry investors | AH36: Geopolitical concerns starting to worry investors | AI36: Geopolitical concerns starting to worry investors | AJ36: 4 | AK36: =INT(0.4*AK31+0.6*(1+RAND()*10)) -> 6 | AL36: =+$AI$14+(AJ36-1)*$AI$16+$AI$16*RAND() -> 0.02426791783 | AO36: 7 | BF36: 0
A37: Lower Bound Payoff | B37: =+B36*$B$41 -> -10000 | C37: =+C36*$B$41 -> -10000 | E37: 5 | F37: 100 | G37: 0 | H37: 0 | I37: 0 | J37: =1000*$L37 -> 13.76977377 | K37: =1000*(0.06-$L37) -> 46.23022623 | L37: 0.01376977377 | AD37: 52.26666667 | AE37: Some major corporations have started to trim work force | AF37: Some major corporations have started to trim work force | AG37: Some major corporations have started to trim work force | AH37: Some major corporations have started to trim work force | AI37: Some major corporations have started to trim work force | AJ37: 4 | AK37: =+AK36 -> 6 | AL37: 0.02426791783 | AO37: 5 | BF37: =+INT($AE$8*$AD$10*RAND()+BF36) -> 56
A38: Upper Bound | B38: 100000000 | C38: 100000000 | E38: 5 | F38: 0 | G38: 100 | H38: 0 | I38: 0 | J38: =1000*$L38 -> 11.25760376 | K38: =1000*(0.06-$L38) -> 48.74239624 | L38: 0.01125760376 | AD38: 82.13333333 | AE38: Leading economic indicators match expectations | AF38: Leading economic indicators match expectations | AG38: Leading economic indicators match expectations | AH38: Leading economic indicators match expectations | AI38: Leading economic indicators match expectations | AJ38: 4 | AK38: =+AK37 -> 6 | AL38: 0.02426791783 | AO38: 3 | BF38: =+INT($AE$8*$AD$10*RAND()+BF37) -> 88
A39: Upper Bound Payoff | B39: =+B38*$B$41 -> 10000 | C39: =+C38*$B$41 -> 10000 | E39: 5 | F39: 0 | G39: 0 | H39: 100 | I39: 0 | J39: =1000*$L39 -> 23.22883718 | K39: =1000*(0.06-$L39) -> 36.77116282 | L39: 0.02322883718 | AD39: 86.8 | AE39: Leading economic indicators match expectations | AF39: Leading economic indicators match expectations | AG39: Leading economic indicators match expectations | AH39: Leading economic indicators match expectations | AI39: Leading economic indicators match expectations | AJ39: 4 | AK39: =+AK38 -> 6 | AL39: 0.02426791783 | AO39: 2 | BF39: =+INT($AE$8*$AD$10*RAND()+BF38) -> 93
A40: Constant | B40: 0 | C40: 0 | E40: 105 | F40: 0 | G40: 0 | H40: 0 | I40: 100 | J40: =10000*$L40 -> 249.981042 | K40: =10000*(0.06-$L40) -> 350.018958 | L40: 0.0249981042 | AD40: 135.3333333 | AE40: Some major corporations have started to trim work force | AF40: Some major corporations have started to trim work force | AG40: Some major corporations have started to trim work force | AH40: Some major corporations have started to trim work force | AI40: Some major corporations have started to trim work force | AJ40: 4 | AK40: =+AK39 -> 6 | AL40: 0.02426791783 | AO40: 1 | BF40: =+INT($AE$8*$AD$10*RAND()+BF39) -> 145
A41: Linear Coefficient | B41: 0.0001 | C41: 0.0001 | D41: Trial 5 | E41: 5 | F41: 0 | G41: 0 | H41: 0 | I41: 0 | J41: =1000*$L41 -> 19.99999955 | K41: =1000*(0.06-$L41) -> 40.00000045 | L41: 0.01999999955 | AC41: Period5 | AD41: 0 | AE41: =+B02Clue1(INT(0.6*$AJ41+0.4*$AJ36+RAND()*$AO41)) -> Factory orders expected to increase sharply | AF41: =+$AE41 -> Factory orders expected to increase sharply | AG41: Factory orders expected to increase sharply | AH41: Factory orders expected to increase sharply | AI41: Factory orders expected to increase sharply | AJ41: 6 | AK41: =INT(0.4*AK36+0.6*(1+RAND()*10)) -> 3 | AL41: =+$AI$14+(AJ41-1)*$AI$16+$AI$16*RAND() -> 0.0334450427 | AO41: 7 | BF41: 0
A42: Quadratic Coefficient | B42: 0 | C42: 0 | E42: 5 | F42: 100 | G42: 0 | H42: 0 | I42: 0 | J42: =1000*$L42 -> 45.57726905 | K42: =1000*(0.06-$L42) -> 14.42273095 | L42: 0.04557726905 | AD42: 66.26666667 | AE42: Leading indicators suggest positive economic outlook | AF42: Leading indicators suggest positive economic outlook | AG42: Leading indicators suggest positive economic outlook | AH42: Leading indicators suggest positive economic outlook | AI42: Leading indicators suggest positive economic outlook | AJ42: 6 | AK42: =+AK41 -> 3 | AL42: 0.0334450427 | AO42: 5 | BF42: =+INT($AE$8*$AD$10*RAND()+BF41) -> 71
A43: Log Coefficient | B43: 0 | C43: 0 | E43: 5 | F43: 0 | G43: 100 | H43: 0 | I43: 0 | J43: =1000*$L43 -> 35.47955677 | K43: =1000*(0.06-$L43) -> 24.52044323 | L43: 0.03547955677 | AD43: 71.86666667 | AE43: Leading economic indicators match expectations | AF43: Leading economic indicators match expectations | AG43: Leading economic indicators match expectations | AH43: Leading economic indicators match expectations | AI43: Leading economic indicators match expectations | AJ43: 6 | AK43: =+AK42 -> 3 | AL43: 0.0334450427 | AO43: 3 | BF43: =+INT($AE$8*$AD$10*RAND()+BF42) -> 77
A44: CARA Coefficient | B44: 0 | C44: 0 | E44: 5 | F44: 0 | G44: 0 | H44: 100 | I44: 0 | J44: =1000*$L44 -> 21.71170339 | K44: =1000*(0.06-$L44) -> 38.28829661 | L44: 0.02171170339 | AD44: 99.86666667 | AE44: Leading indicators suggest positive economic outlook | AF44: Leading indicators suggest positive economic outlook | AG44: Leading indicators suggest positive economic outlook | AH44: Leading indicators suggest positive economic outlook | AI44: Leading indicators suggest positive economic outlook | AJ44: 6 | AK44: =+AK43 -> 3 | AL44: 0.0334450427 | AO44: 2 | BF44: =+INT($AE$8*$AD$10*RAND()+BF43) -> 107
A45: CARA Exponent | B45: 0 | C45: 0 | E45: 105 | F45: 0 | G45: 0 | H45: 0 | I45: 100 | J45: =10000*$L45 -> 243.6909266 | K45: =10000*(0.06-$L45) -> 356.3090734 | L45: 0.02436909266 | AD45: 111.0666667 | AE45: Leading economic indicators match expectations | AF45: Leading economic indicators match expectations | AG45: Leading economic indicators match expectations | AH45: Leading economic indicators match expectations | AI45: Leading economic indicators match expectations | AJ45: 6 | AK45: =+AK44 -> 3 | AL45: 0.0334450427 | AO45: 1 | BF45: =+INT($AE$8*$AD$10*RAND()+BF44) -> 119
A46: HARA Coefficient | B46: 0 | C46: 0 | D46: Trial 6 | E46: 5 | F46: 0 | G46: 0 | H46: 0 | I46: 0 | J46: =1000*$L46 -> 19.99999955 | K46: =1000*(0.06-$L46) -> 40.00000045 | L46: 0.01999999955 | AC46: Trial 2 | AD46: 0 | AE46: =+B02Clue1(INT($AJ46+RAND()*$AO46)) -> Analyst forecast increased earnings for most industries in the economy | AF46: Analyst forecast increased earnings for most industries in the economy | AG46: Analyst forecast increased earnings for most industries in the economy | AH46: Analyst forecast increased earnings for most industries in the economy | AI46: Analyst forecast increased earnings for most industries in the economy | AJ46: 5 | AK46: =INT(1+RAND()*10) -> 5 | AL46: =+$AI$14+(AJ46-1)*$AI$16+$AI$16*RAND() -> 0.02667117569 | AO46: 7 | BF46: 0
A47: HARA Exponent | B47: 0 | C47: 0 | E47: 5 | F47: 100 | G47: 0 | H47: 0 | I47: 0 | J47: =1000*$L47 -> 23.74256216 | K47: =1000*(0.06-$L47) -> 36.25743784 | L47: 0.02374256216 | AD47: 14 | AE47: =+B02Clue1(INT($AJ47+RAND()*$AO47)) -> Factory orders expected to increase sharply | AF47: Factory orders expected to increase sharply | AG47: Factory orders expected to increase sharply | AH47: Factory orders expected to increase sharply | AI47: Factory orders expected to increase sharply | AJ47: 5 | AK47: =+AK46 -> 5 | AL47: 0.02667117569 | AO47: 5 | BF47: =+INT($AE$8*$AD$10*RAND()+BF46) -> 15
E48: 5 | F48: 0 | G48: 100 | H48: 0 | I48: 0 | J48: =1000*$L48 -> 30.85866012 | K48: =1000*(0.06-$L48) -> 29.14133988 | L48: 0.03085866012 | AD48: 44.8 | AE48: =+B02Clue1(INT($AJ48+RAND()*$AO48)) -> Stock funds experiencing mild selling | AF48: Stock funds experiencing mild selling | AG48: Stock funds experiencing mild selling | AH48: Stock funds experiencing mild selling | AI48: Stock funds experiencing mild selling | AJ48: 5 | AK48: 5 | AL48: 0.02667117569 | AO48: 3 | BF48: =+INT($AE$8*$AD$10*RAND()+BF47) -> 48
E49: 5 | F49: 0 | G49: 0 | H49: 100 | I49: 0 | J49: =1000*$L49 -> 26.82883665 | K49: =1000*(0.06-$L49) -> 33.17116335 | L49: 0.02682883665 | AD49: 124.1333333 | AE49: =+B02Clue1(INT($AJ49+RAND()*$AO49)) -> Fed chairman congressional testimony provides optimism | AF49: Fed chairman congressional testimony provides optimism | AG49: Fed chairman congressional testimony provides optimism | AH49: Fed chairman congressional testimony provides optimism | AI49: Fed chairman congressional testimony provides optimism | AJ49: 5 | AK49: 5 | AL49: 0.02667117569 | AO49: 2 | BF49: =+INT($AE$8*$AD$10*RAND()+BF48) -> 133
E50: 105 | F50: 0 | G50: 0 | H50: 0 | I50: 100 | J50: =10000*$L50 -> 290.6445228 | K50: =10000*(0.06-$L50) -> 309.3554772 | L50: 0.02906445228 | AD50: 127.8666667 | AE50: =+B02Clue1(INT($AJ50+RAND()*$AO50)) -> Stock funds experiencing mild selling | AF50: Stock funds experiencing mild selling | AG50: Stock funds experiencing mild selling | AH50: Stock funds experiencing mild selling | AI50: Stock funds experiencing mild selling | AJ50: 5 | AK50: 5 | AL50: 0.02667117569 | AO50: 1 | BF50: =+INT($AE$8*$AD$10*RAND()+BF49) -> 137
D51: Trial 7 | E51: 5 | F51: 0 | G51: 0 | H51: 0 | I51: 0 | J51: =1000*$L51 -> 19.99999955 | K51: =1000*(0.06-$L51) -> 40.00000045 | L51: 0.01999999955 | AC51: Period2 | AD51: 0 | AE51: =+B02Clue1(INT(0.6*$AJ51+0.4*$AJ46+RAND()*$AO51)) -> Inflationary expectations increased sharply | AF51: Inflationary expectations increased sharply | AG51: Inflationary expectations increased sharply | AH51: Inflationary expectations increased sharply | AI51: Inflationary expectations increased sharply | AJ51: 6 | AK51: =INT(0.4*AK46+0.6*(1+RAND()*10)) -> 3 | AL51: =+$AI$14+(AJ51-1)*$AI$16+$AI$16*RAND() -> 0.03065881729 | AO51: 7 | BF51: 0
E52: 5 | F52: 100 | G52: 0 | H52: 0 | I52: 0 | J52: =1000*$L52 -> 35.75386852 | K52: =1000*(0.06-$L52) -> 24.24613148 | L52: 0.03575386852 | AD52: 27.06666667 | AE52: =+B02Clue1(INT(0.6*$AJ52+0.4*$AJ47+RAND()*$AO52)) -> Consumer price index expected to surge | AF52: Consumer price index expected to surge | AG52: Consumer price index expected to surge | AH52: Consumer price index expected to surge | AI52: Consumer price index expected to surge | AJ52: 6 | AK52: =+AK51 -> 3 | AL52: =+AL51 -> 0.03065881729 | AO52: 5 | BF52: =+INT($AE$8*$AD$10*RAND()+BF51) -> 29
E53: 5 | F53: 0 | G53: 100 | H53: 0 | I53: 0 | J53: =1000*$L53 -> 44.07157376 | K53: =1000*(0.06-$L53) -> 15.92842624 | L53: 0.04407157376 | AD53: 84 | AE53: Fed chairman congressional testimony provides optimism | AF53: Fed chairman congressional testimony provides optimism | AG53: Fed chairman congressional testimony provides optimism | AH53: Fed chairman congressional testimony provides optimism | AI53: Fed chairman congressional testimony provides optimism | AJ53: 6 | AK53: =+AK52 -> 3 | AL53: =+AL52 -> 0.03065881729 | AO53: 3 | BF53: =+INT($AE$8*$AD$10*RAND()+BF52) -> 90
E54: 5 | F54: 0 | G54: 0 | H54: 100 | I54: 0 | J54: =1000*$L54 -> 45.79770193 | K54: =1000*(0.06-$L54) -> 14.20229807 | L54: 0.04579770193 | AD54: 164.2666667 | AE54: Leading indicators suggest positive economic outlook | AF54: Leading indicators suggest positive economic outlook | AG54: Leading indicators suggest positive economic outlook | AH54: Leading indicators suggest positive economic outlook | AI54: Leading indicators suggest positive economic outlook | AJ54: 6 | AK54: =+AK53 -> 3 | AL54: 0.03065881729 | AO54: 2 | BF54: =+INT($AE$8*$AD$10*RAND()+BF53) -> 176
E55: 105 | F55: 0 | G55: 0 | H55: 0 | I55: 100 | J55: =10000*$L55 -> 272.796005 | K55: =10000*(0.06-$L55) -> 327.203995 | L55: 0.0272796005 | AD55: 208.1333333 | AE55: Fed chairman congressional testimony provides optimism | AF55: Fed chairman congressional testimony provides optimism | AG55: Fed chairman congressional testimony provides optimism | AH55: Fed chairman congressional testimony provides optimism | AI55: Fed chairman congressional testimony provides optimism | AJ55: 6 | AK55: =+AK54 -> 3 | AL55: 0.03065881729 | AO55: 1 | BF55: =+INT($AE$8*$AD$10*RAND()+BF54) -> 223
D56: Trial 8 | E56: 5 | F56: 0 | G56: 0 | H56: 0 | I56: 0 | J56: =1000*$L56 -> 19.99999955 | K56: =1000*(0.06-$L56) -> 40.00000045 | L56: 0.01999999955 | AC56: Period3 | AD56: 0 | AE56: =+B02Clue1(INT(0.6*$AJ56+0.4*$AJ51+RAND()*$AO56)) -> Fed chairman congressional testimony provides optimism | AF56: Fed chairman congressional testimony provides optimism | AG56: Fed chairman congressional testimony provides optimism | AH56: Fed chairman congressional testimony provides optimism | AI56: Fed chairman congressional testimony provides optimism | AJ56: 6 | AK56: =INT(0.4*AK51+0.6*(1+RAND()*10)) -> 2 | AL56: =+$AI$14+(AJ56-1)*$AI$16+$AI$16*RAND() -> 0.03221733644 | AO56: 7 | BF56: 0
E57: 5 | F57: 100 | G57: 0 | H57: 0 | I57: 0 | J57: =1000*$L57 -> 29.58711237 | K57: =1000*(0.06-$L57) -> 30.41288763 | L57: 0.02958711237 | AD57: 11.2 | AE57: Factory orders expected to increase sharply | AF57: Factory orders expected to increase sharply | AG57: Factory orders expected to increase sharply | AH57: Factory orders expected to increase sharply | AI57: Factory orders expected to increase sharply | AJ57: 6 | AK57: =+AK56 -> 2 | AL57: 0.03221733644 | AO57: 5 | BF57: =+INT($AE$8*$AD$10*RAND()+BF56) -> 12
E58: 5 | F58: 0 | G58: 100 | H58: 0 | I58: 0 | J58: =1000*$L58 -> 38.58718649 | K58: =1000*(0.06-$L58) -> 21.41281351 | L58: 0.03858718649 | AD58: 28 | AE58: Analyst forecast increased earnings for most industries in the economy | AF58: Analyst forecast increased earnings for most industries in the economy | AG58: Analyst forecast increased earnings for most industries in the economy | AH58: Analyst forecast increased earnings for most industries in the economy | AI58: Analyst forecast increased earnings for most industries in the economy | AJ58: 6 | AK58: =+AK57 -> 2 | AL58: 0.03221733644 | AO58: 3 | BF58: =+INT($AE$8*$AD$10*RAND()+BF57) -> 30
E59: 5 | F59: 0 | G59: 0 | H59: 100 | I59: 0 | J59: =1000*$L59 -> 22.73146808 | K59: =1000*(0.06-$L59) -> 37.26853192 | L59: 0.02273146808 | AD59: 101.7333333 | AE59: Indicators are reinforcing a positive economic outlook | AF59: Indicators are reinforcing a positive economic outlook | AG59: Indicators are reinforcing a positive economic outlook | AH59: Indicators are reinforcing a positive economic outlook | AI59: Indicators are reinforcing a positive economic outlook | AJ59: 6 | AK59: =+AK58 -> 2 | AL59: 0.03221733644 | AO59: 2 | BF59: =+INT($AE$8*$AD$10*RAND()+BF58) -> 109
E60: 105 | F60: 0 | G60: 0 | H60: 0 | I60: 100 | J60: =10000*$L60 -> 238.8004214 | K60: =10000*(0.06-$L60) -> 361.1995786 | L60: 0.02388004214 | AD60: 150.2666667 | AE60: Leading indicators suggest positive economic outlook | AF60: Leading indicators suggest positive economic outlook | AG60: Leading indicators suggest positive economic outlook | AH60: Leading indicators suggest positive economic outlook | AI60: Leading indicators suggest positive economic outlook | AJ60: 6 | AK60: =+AK59 -> 2 | AL60: 0.03221733644 | AO60: 1 | BF60: =+INT($AE$8*$AD$10*RAND()+BF59) -> 161
D61: Trial 9 | E61: 5 | F61: 0 | G61: 0 | H61: 0 | I61: 0 | J61: =1000*$L61 -> 19.99999955 | K61: =1000*(0.06-$L61) -> 40.00000045 | L61: 0.01999999955 | AC61: Period4 | AD61: 0 | AE61: =+B02Clue1(INT(0.6*$AJ61+0.4*$AJ56+RAND()*$AO61)) -> Sharp jump in strong GDP forecasts | AF61: =+$AE61 -> Sharp jump in strong GDP forecasts | AG61: Sharp jump in strong GDP forecasts | AH61: Sharp jump in strong GDP forecasts | AI61: Sharp jump in strong GDP forecasts | AJ61: 7 | AK61: =INT(0.4*AK56+0.6*(1+RAND()*10)) -> 6 | AL61: =+$AI$14+(AJ61-1)*$AI$16+$AI$16*RAND() -> 0.03620245338 | AO61: 7 | BF61: 0
E62: 5 | F62: 100 | G62: 0 | H62: 0 | I62: 0 | J62: =1000*$L62 -> 37.67321259 | K62: =1000*(0.06-$L62) -> 22.32678741 | L62: 0.03767321259 | AD62: 53.2 | AE62: Indicators are reinforcing a positive economic outlook | AF62: Indicators are reinforcing a positive economic outlook | AG62: Indicators are reinforcing a positive economic outlook | AH62: Indicators are reinforcing a positive economic outlook | AI62: Indicators are reinforcing a positive economic outlook | AJ62: 7 | AK62: =+AK61 -> 6 | AL62: 0.03620245338 | AO62: 5 | BF62: =+INT($AE$8*$AD$10*RAND()+BF61) -> 57
E63: 5 | F63: 0 | G63: 100 | H63: 0 | I63: 0 | J63: =1000*$L63 -> 36.7222093 | K63: =1000*(0.06-$L63) -> 23.2777907 | L63: 0.0367222093 | AD63: 67.2 | AE63: Fed chairman congressional testimony provides optimism | AF63: Fed chairman congressional testimony provides optimism | AG63: Fed chairman congressional testimony provides optimism | AH63: Fed chairman congressional testimony provides optimism | AI63: Fed chairman congressional testimony provides optimism | AJ63: 7 | AK63: =+AK62 -> 6 | AL63: 0.03620245338 | AO63: 3 | BF63: =+INT($AE$8*$AD$10*RAND()+BF62) -> 72
E64: 5 | F64: 0 | G64: 0 | H64: 100 | I64: 0 | J64: =1000*$L64 -> 33.46704692 | K64: =1000*(0.06-$L64) -> 26.53295308 | L64: 0.03346704692 | AD64: 74.66666667 | AE64: Leading indicators suggest positive economic outlook | AF64: Leading indicators suggest positive economic outlook | AG64: Leading indicators suggest positive economic outlook | AH64: Leading indicators suggest positive economic outlook | AI64: Leading indicators suggest positive economic outlook | AJ64: 7 | AK64: =+AK63 -> 6 | AL64: 0.03620245338 | AO64: 2 | BF64: =+INT($AE$8*$AD$10*RAND()+BF63) -> 80
E65: 105 | F65: 0 | G65: 0 | H65: 0 | I65: 100 | J65: =10000*$L65 -> 229.7817171 | K65: =10000*(0.06-$L65) -> 370.2182829 | L65: 0.02297817171 | AD65: 114.8 | AE65: Leading indicators suggest positive economic outlook | AF65: Leading indicators suggest positive economic outlook | AG65: Leading indicators suggest positive economic outlook | AH65: Leading indicators suggest positive economic outlook | AI65: Leading indicators suggest positive economic outlook | AJ65: 7 | AK65: =+AK64 -> 6 | AL65: 0.03620245338 | AO65: 1 | BF65: =+INT($AE$8*$AD$10*RAND()+BF64) -> 123
D66: Trial 10 | E66: 5 | F66: 0 | G66: 0 | H66: 0 | I66: 0 | J66: =1000*$L66 -> 19.99999955 | K66: =1000*(0.06-$L66) -> 40.00000045 | L66: 0.01999999955 | AC66: Period5 | AD66: 0 | AE66: =+B02Clue1(INT(0.6*$AJ66+0.4*$AJ61+RAND()*$AO66)) -> Sharp jump in strong GDP forecasts | AF66: Sharp jump in strong GDP forecasts | AG66: Sharp jump in strong GDP forecasts | AH66: Sharp jump in strong GDP forecasts | AI66: Sharp jump in strong GDP forecasts | AJ66: 6 | AK66: =INT(0.4*AK61+0.6*(1+RAND()*10)) -> 3 | AL66: =+$AI$14+(AJ66-1)*$AI$16+$AI$16*RAND() -> 0.03308032026 | AO66: 7 | BF66: 0
E67: 5 | F67: 100 | G67: 0 | H67: 0 | I67: 0 | J67: =1000*$L67 -> 25.50870925 | K67: =1000*(0.06-$L67) -> 34.49129075 | L67: 0.02550870925 | AD67: 34.53333333 | AE67: Leading indicators suggest positive economic outlook | AF67: Leading indicators suggest positive economic outlook | AG67: Leading indicators suggest positive economic outlook | AH67: Leading indicators suggest positive economic outlook | AI67: Leading indicators suggest positive economic outlook | AJ67: 6 | AK67: =+AK66 -> 3 | AL67: 0.03308032026 | AO67: 5 | BF67: =+INT($AE$8*$AD$10*RAND()+BF66) -> 37
E68: 5 | F68: 0 | G68: 100 | H68: 0 | I68: 0 | J68: =1000*$L68 -> 21.14048041 | K68: =1000*(0.06-$L68) -> 38.85951959 | L68: 0.02114048041 | AD68: 92.4 | AE68: Indicators are reinforcing a positive economic outlook | AF68: Indicators are reinforcing a positive economic outlook | AG68: Indicators are reinforcing a positive economic outlook | AH68: Indicators are reinforcing a positive economic outlook | AI68: Indicators are reinforcing a positive economic outlook | AJ68: 6 | AK68: =+AK67 -> 3 | AL68: 0.03308032026 | AO68: 3 | BF68: =+INT($AE$8*$AD$10*RAND()+BF67) -> 99
E69: 5 | F69: 0 | G69: 0 | H69: 100 | I69: 0 | J69: =1000*$L69 -> 26.59528516 | K69: =1000*(0.06-$L69) -> 33.40471484 | L69: 0.02659528516 | AD69: 172.6666667 | AE69: Leading indicators suggest positive economic outlook | AF69: Leading indicators suggest positive economic outlook | AG69: Leading indicators suggest positive economic outlook | AH69: Leading indicators suggest positive economic outlook | AI69: Leading indicators suggest positive economic outlook | AJ69: 6 | AK69: =+AK68 -> 3 | AL69: 0.03308032026 | AO69: 2 | BF69: =+INT($AE$8*$AD$10*RAND()+BF68) -> 185
E70: 105 | F70: 0 | G70: 0 | H70: 0 | I70: 100 | J70: =10000*$L70 -> 312.6338869 | K70: =10000*(0.06-$L70) -> 287.3661131 | L70: 0.03126338869 | AD70: 207.2 | AE70: Geopolitical investment concerns are rapidly fading | AF70: Geopolitical investment concerns are rapidly fading | AG70: Geopolitical investment concerns are rapidly fading | AH70: Geopolitical investment concerns are rapidly fading | AI70: Geopolitical investment concerns are rapidly fading | AJ70: 6 | AK70: =+AK69 -> 3 | AL70: 0.03308032026 | AO70: 1 | BF70: =+INT($AE$8*$AD$10*RAND()+BF69) -> 222
AC71: Trial 3 | AD71: 0 | AE71: =+B02Clue1(INT($AJ71+RAND()*$AO71)) -> Early trend in recession, forward indicators raise new questions about the economy | AF71: Early trend in recession, forward indicators raise new questions about the economy | AG71: Early trend in recession, forward indicators raise new questions about the economy | AH71: Early trend in recession, forward indicators raise new questions about the economy | AI71: Early trend in recession, forward indicators raise new questions about the economy | AJ71: 3 | AK71: =INT(1+RAND()*10) -> 5 | AL71: =+$AI$14+(AJ71-1)*$AI$16+$AI$16*RAND() -> 0.01810642399 | AO71: 7 | BF71: 0
AD72: 13.06666667 | AE72: =+B02Clue1(INT($AJ72+RAND()*$AO72)) -> Indicators are reinforcing a positive economic outlook | AF72: Indicators are reinforcing a positive economic outlook | AG72: Indicators are reinforcing a positive economic outlook | AH72: Indicators are reinforcing a positive economic outlook | AI72: Indicators are reinforcing a positive economic outlook | AJ72: 3 | AK72: =+AK71 -> 5 | AL72: 0.01810642399 | AO72: 5 | BF72: =+INT($AE$8*$AD$10*RAND()+BF71) -> 14
E73: 78.88518 | G73: 77.43909 | H73: 34.56 | AD73: 89.6 | AE73: =+B02Clue1(INT($AJ73+RAND()*$AO73)) -> Some major corporations have started to trim work force | AF73: Some major corporations have started to trim work force | AG73: Some major corporations have started to trim work force | AH73: Some major corporations have started to trim work force | AI73: Some major corporations have started to trim work force | AJ73: 3 | AK73: 5 | AL73: 0.01810642399 | AO73: 3 | BF73: =+INT($AE$8*$AD$10*RAND()+BF72) -> 96
E74: 60 | AD74: 113.8666667 | AE74: =+B02Clue1(INT($AJ74+RAND()*$AO74)) -> Consumer spending suggests that a declining trend has started. | AF74: Consumer spending suggests that a declining trend has started. | AG74: Consumer spending suggests that a declining trend has started. | AH74: Consumer spending suggests that a declining trend has started. | AI74: Consumer spending suggests that a declining trend has started. | AJ74: 3 | AK74: 5 | AL74: 0.01810642399 | AO74: 2 | BF74: =+INT($AE$8*$AD$10*RAND()+BF73) -> 122
AD75: 158.6666667 | AE75: =+B02Clue1(INT($AJ75+RAND()*$AO75)) -> Consumer spending suggests that a declining trend has started. | AF75: Consumer spending suggests that a declining trend has started. | AG75: Consumer spending suggests that a declining trend has started. | AH75: Consumer spending suggests that a declining trend has started. | AI75: Consumer spending suggests that a declining trend has started. | AJ75: 3 | AK75: 5 | AL75: 0.01810642399 | AO75: 1 | BF75: =+INT($AE$8*$AD$10*RAND()+BF74) -> 170
AC76: Period2 | AD76: 0 | AE76: =+B02Clue1(INT(0.6*$AJ76+0.4*$AJ71+RAND()*$AO76)) -> Very strong and unexpected surge in the producer price index | AF76: Very strong and unexpected surge in the producer price index | AG76: Very strong and unexpected surge in the producer price index | AH76: Very strong and unexpected surge in the producer price index | AI76: Very strong and unexpected surge in the producer price index | AJ76: 6 | AK76: =INT(0.4*AK71+0.6*(1+RAND()*10)) -> 6 | AL76: =+$AI$14+(AJ76-1)*$AI$16+$AI$16*RAND() -> 0.03306158624 | AO76: 7 | BF76: 0
AD77: 54.13333333 | AE77: =+B02Clue1(INT(0.6*$AJ77+0.4*$AJ72+RAND()*$AO77)) -> Leading economic indicators match expectations | AF77: Leading economic indicators match expectations | AG77: Leading economic indicators match expectations | AH77: Leading economic indicators match expectations | AI77: Leading economic indicators match expectations | AJ77: 6 | AK77: =+AK76 -> 6 | AL77: =+AL76 -> 0.03306158624 | AO77: 5 | BF77: =+INT($AE$8*$AD$10*RAND()+BF76) -> 58
AD78: 93.33333333 | AE78: Geopolitical investment concerns are rapidly fading | AF78: Geopolitical investment concerns are rapidly fading | AG78: Geopolitical investment concerns are rapidly fading | AH78: Geopolitical investment concerns are rapidly fading | AI78: Geopolitical investment concerns are rapidly fading | AJ78: 6 | AK78: =+AK77 -> 6 | AL78: =+AL77 -> 0.03306158624 | AO78: 3 | BF78: =+INT($AE$8*$AD$10*RAND()+BF77) -> 100
AD79: 169.8666667 | AE79: Stock funds experiencing mild selling | AF79: Stock funds experiencing mild selling | AG79: Stock funds experiencing mild selling | AH79: Stock funds experiencing mild selling | AI79: Stock funds experiencing mild selling | AJ79: 6 | AK79: =+AK78 -> 6 | AL79: 0.03306158624 | AO79: 2 | BF79: =+INT($AE$8*$AD$10*RAND()+BF78) -> 182
A80: Endowments Calculations | AD80: 170.8 | AE80: Stock funds experiencing mild selling | AF80: Stock funds experiencing mild selling | AG80: Stock funds experiencing mild selling | AH80: Stock funds experiencing mild selling | AI80: Stock funds experiencing mild selling | AJ80: 6 | AK80: =+AK79 -> 6 | AL80: 0.03306158624 | AO80: 1 | BF80: =+INT($AE$8*$AD$10*RAND()+BF79) -> 183
A81: E(Rates) | B81: 0.01999999955 | C81: 0.03672970086 | D81: 0.04112125933 | E81: 0.03549132124 | F81: 0.04204283282 | AC81: Period3 | AD81: 0 | AE81: =+B02Clue1(INT(0.6*$AJ81+0.4*$AJ76+RAND()*$AO81)) -> Geopolitical investment concerns are rapidly fading | AF81: =+$AE81 -> Geopolitical investment concerns are rapidly fading | AG81: Geopolitical investment concerns are rapidly fading | AH81: Geopolitical investment concerns are rapidly fading | AI81: Geopolitical investment concerns are rapidly fading | AJ81: 4 | AK81: =INT(0.4*AK76+0.6*(1+RAND()*10)) -> 7 | AL81: =+$AI$14+(AJ81-1)*$AI$16+$AI$16*RAND() -> 0.02565094324 | AO81: 7 | BF81: 0
A82: E(1+Spot Rates) | B82: =(1+B81) -> 1.02 | C82: =+((1+B81)*(1+C81))^0.5 -> 1.028330829 | D82: =+((C82^2)*(1+D81))^(1/3) -> 1.032576751 | E82: =+((D82^3)*(1+E81))^(1/4) -> 1.033304623 | F82: =+((E82^5)*(1+F81))^(1/5) -> 1.041850697 | AD82: 1.866666667 | AE82: Geopolitical investment concerns are rapidly fading | AF82: Geopolitical investment concerns are rapidly fading | AG82: Geopolitical investment concerns are rapidly fading | AH82: Geopolitical investment concerns are rapidly fading | AI82: Geopolitical investment concerns are rapidly fading | AJ82: 4 | AK82: =+AK81 -> 7 | AL82: 0.02565094324 | AO82: 5 | BF82: =+INT($AE$8*$AD$10*RAND()+BF81) -> 2
A83: Coupon Bond | B83: 5 | C83: 5 | D83: 5 | E83: 5 | F83: 105 | AD83: 65.33333333 | AE83: Leading economic indicators match expectations | AF83: Leading economic indicators match expectations | AG83: Leading economic indicators match expectations | AH83: Leading economic indicators match expectations | AI83: Leading economic indicators match expectations | AJ83: 4 | AK83: =+AK82 -> 7 | AL83: 0.02565094324 | AO83: 3 | BF83: =+INT($AE$8*$AD$10*RAND()+BF82) -> 70
A84: Z2 | B84: 0 | C84: 100 | AD84: 82.13333333 | AE84: Fed chairman congressional testimony provides optimism | AF84: Fed chairman congressional testimony provides optimism | AG84: Fed chairman congressional testimony provides optimism | AH84: Fed chairman congressional testimony provides optimism | AI84: Fed chairman congressional testimony provides optimism | AJ84: 4 | AK84: =+AK83 -> 7 | AL84: 0.02565094324 | AO84: 2 | BF84: =+INT($AE$8*$AD$10*RAND()+BF83) -> 88
A85: Z3 | B85: 0 | C85: 0 | D85: 100 | AD85: 92.4 | AE85: Stock funds experiencing mild selling | AF85: Stock funds experiencing mild selling | AG85: Stock funds experiencing mild selling | AH85: Stock funds experiencing mild selling | AI85: Stock funds experiencing mild selling | AJ85: 4 | AK85: =+AK84 -> 7 | AL85: 0.02565094324 | AO85: 1 | BF85: =+INT($AE$8*$AD$10*RAND()+BF84) -> 99
A86: Z4 | B86: 0 | C86: 0 | D86: 0 | E86: 100 | AC86: Period4 | AD86: 0 | AE86: =+B02Clue1(INT(0.6*$AJ86+0.4*$AJ81+RAND()*$AO86)) -> Stock funds experiencing mild selling | AF86: Stock funds experiencing mild selling | AG86: Stock funds experiencing mild selling | AH86: Stock funds experiencing mild selling | AI86: Stock funds experiencing mild selling | AJ86: 4 | AK86: =INT(0.4*AK81+0.6*(1+RAND()*10)) -> 5 | AL86: =+$AI$14+(AJ86-1)*$AI$16+$AI$16*RAND() -> 0.02326757396 | AO86: 7 | BF86: 0
A87: Z5 | B87: 0 | C87: 0 | D87: 0 | E87: 0 | F87: 100 | AD87: =+(BF87/300)*$AD$18 -> 23.33333333 | AE87: Leading economic indicators match expectations | AF87: Leading economic indicators match expectations | AG87: Leading economic indicators match expectations | AH87: Leading economic indicators match expectations | AI87: Leading economic indicators match expectations | AJ87: 4 | AK87: =+AK86 -> 5 | AL87: 0.02326757396 | AO87: 5 | BF87: =+INT($AE$8*$AD$10*RAND()+BF86) -> 25
B88: PerfectInfo | AD88: 26.13333333 | AE88: Some major corporations have started to trim work force | AF88: Some major corporations have started to trim work force | AG88: Some major corporations have started to trim work force | AH88: Some major corporations have started to trim work force | AI88: Some major corporations have started to trim work force | AJ88: 4 | AK88: =+AK87 -> 5 | AL88: 0.02326757396 | AO88: 3 | BF88: =+INT($AE$8*$AD$10*RAND()+BF87) -> 28
A89: Coupon Bond | B89: =+(B83/($B$82))+(C83/($C$82)^2)+(D83/($D$82)^3)+(E83/($E$82)^4)+(F83/($F$82)^5) -> 104.0962151 | AD89: 75.6 | AE89: Some major corporations have started to trim work force | AF89: Some major corporations have started to trim work force | AG89: Some major corporations have started to trim work force | AH89: Some major corporations have started to trim work force | AI89: Some major corporations have started to trim work force | AJ89: 4 | AK89: =+AK88 -> 5 | AL89: 0.02326757396 | AO89: 2 | BF89: =+INT($AE$8*$AD$10*RAND()+BF88) -> 81
A90: Z2 | B90: =+(B84/($B$82))+(C84/($C$82)^2)+(D84/($D$82)^3)+(E84/($E$82)^4)+(F84/($F$82)^5) -> 94.56584069 | AD90: 104.5333333 | AE90: Some major corporations have started to trim work force | AF90: Some major corporations have started to trim work force | AG90: Some major corporations have started to trim work force | AH90: Some major corporations have started to trim work force | AI90: Some major corporations have started to trim work force | AJ90: 4 | AK90: =+AK89 -> 5 | AL90: 0.02326757396 | AO90: 1 | BF90: =+INT($AE$8*$AD$10*RAND()+BF89) -> 112
A91: Z3 | B91: =+(B85/($B$82))+(C85/($C$82)^2)+(D85/($D$82)^3)+(E85/($E$82)^4)+(F85/($F$82)^5) -> 90.83076524 | AC91: Period5 | AD91: 0 | AE91: =+B02Clue1(INT(0.6*$AJ91+0.4*$AJ86+RAND()*$AO91)) -> Fed chairman congressional testimony provides optimism | AF91: Fed chairman congressional testimony provides optimism | AG91: Fed chairman congressional testimony provides optimism | AH91: Fed chairman congressional testimony provides optimism | AI91: Fed chairman congressional testimony provides optimism | AJ91: 4 | AK91: =INT(0.4*AK86+0.6*(1+RAND()*10)) -> 3 | AL91: =+$AI$14+(AJ91-1)*$AI$16+$AI$16*RAND() -> 0.02402825957 | AO91: 7 | BF91: 0
A92: Z4 | B92: =+(B86/($B$82))+(C86/($C$82)^2)+(D86/($D$82)^3)+(E86/($E$82)^4)+(F86/($F$82)^5) -> 87.71755337 | AD92: 47.6 | AE92: Analyst forecast increased earnings for most industries in the economy | AF92: Analyst forecast increased earnings for most industries in the economy | AG92: Analyst forecast increased earnings for most industries in the economy | AH92: Analyst forecast increased earnings for most industries in the economy | AI92: Analyst forecast increased earnings for most industries in the economy | AJ92: 4 | AK92: =+AK91 -> 3 | AL92: 0.02402825957 | AO92: =+AO87 -> 5 | BF92: =+INT($AE$8*$AD$10*RAND()+BF91) -> 51
A93: Z5 | B93: =+(B87/($B$82))+(C87/($C$82)^2)+(D87/($D$82)^3)+(E87/($E$82)^4)+(F87/($F$82)^5) -> 81.46528222 | AD93: 88.66666667 | AE93: Geopolitical concerns starting to worry investors | AF93: Geopolitical concerns starting to worry investors | AG93: Geopolitical concerns starting to worry investors | AH93: Geopolitical concerns starting to worry investors | AI93: Geopolitical concerns starting to worry investors | AJ93: 4 | AK93: =+AK92 -> 3 | AL93: 0.02402825957 | AO93: 3 | BF93: =+INT($AE$8*$AD$10*RAND()+BF92) -> 95
B94: Type 1 | C94: Type 2 | AD94: 97.06666667 | AE94: Some major corporations have started to trim work force | AF94: Some major corporations have started to trim work force | AG94: Some major corporations have started to trim work force | AH94: Some major corporations have started to trim work force | AI94: Some major corporations have started to trim work force | AJ94: 4 | AK94: =+AK93 -> 3 | AL94: 0.02402825957 | AO94: 2 | BF94: =+INT($AE$8*$AD$10*RAND()+BF93) -> 104
A95: Bonds | B95: =+B22*$B$89+B23*$B$90+B24*$B$91+B25*$B$92+B26*$B$93 -> 11047124.1 | C95: =+C22*$B$89+C23*$B$90+C24*$B$91+C25*$B$92+C26*$B$93 -> 8935644.252 | AD95: 128.8 | AE95: Geopolitical concerns starting to worry investors | AF95: Geopolitical concerns starting to worry investors | AG95: Geopolitical concerns starting to worry investors | AH95: Geopolitical concerns starting to worry investors | AI95: Geopolitical concerns starting to worry investors | AJ95: 4 | AK95: =+AK94 -> 3 | AL95: 0.02402825957 | AO95: 1 | BF95: =+INT($AE$8*$AD$10*RAND()+BF94) -> 138
A96: Cash | B96: =+B97-B95 -> 3952875.9 | C96: =+C97-C95 -> 6064355.748 | AC96: Trial 4 | AD96: 0 | AE96: =+B02Clue1(INT($AJ96+RAND()*$AO96)) -> Leading indicators suggest positive economic outlook | AF96: Leading indicators suggest positive economic outlook | AG96: Leading indicators suggest positive economic outlook | AH96: Leading indicators suggest positive economic outlook | AI96: Leading indicators suggest positive economic outlook | AJ96: 1 | AK96: =INT(1+RAND()*10) -> 2 | AL96: =+$AI$14+(AJ96-1)*$AI$16+$AI$16*RAND() -> 0.01040946928 | AO96: 7 | BF96: 0
A97: Total | B97: =15000000 -> 15000000 | C97: =15000000 -> 15000000 | AD97: 14.93333333 | AE97: =+B02Clue1(INT($AJ97+RAND()*$AO97)) -> Stock funds experiencing mild selling | AF97: Stock funds experiencing mild selling | AG97: Stock funds experiencing mild selling | AH97: Stock funds experiencing mild selling | AI97: Stock funds experiencing mild selling | AJ97: 1 | AK97: =+AK96 -> 2 | AL97: 0.01040946928 | AO97: 5 | BF97: =+INT($AE$8*$AD$10*RAND()+BF96) -> 16
AD98: 17.73333333 | AE98: =+B02Clue1(INT($AJ98+RAND()*$AO98)) -> Recession more likely say economists | AF98: Recession more likely say economists | AG98: Recession more likely say economists | AH98: Recession more likely say economists | AI98: Recession more likely say economists | AJ98: 1 | AK98: 2 | AL98: 0.01040946928 | AO98: 3 | BF98: =+INT($AE$8*$AD$10*RAND()+BF97) -> 19
AD99: 84.93333333 | AE99: =+B02Clue1(INT($AJ99+RAND()*$AO99)) -> Consumer confidence falls, signalling decline in spending | AF99: Consumer confidence falls, signalling decline in spending | AG99: Consumer confidence falls, signalling decline in spending | AH99: Consumer confidence falls, signalling decline in spending | AI99: Consumer confidence falls, signalling decline in spending | AJ99: 1 | AK99: 2 | AL99: 0.01040946928 | AO99: 2 | BF99: =+INT($AE$8*$AD$10*RAND()+BF98) -> 91
AD100: 157.7333333 | AE100: =+B02Clue1(INT($AJ100+RAND()*$AO100)) -> No breakthrough at the UN; crisis continues | AF100: No breakthrough at the UN; crisis continues | AG100: No breakthrough at the UN; crisis continues | AH100: No breakthrough at the UN; crisis continues | AI100: No breakthrough at the UN; crisis continues | AJ100: 1 | AK100: 2 | AL100: 0.01040946928 | AO100: 1 | BF100: =+INT($AE$8*$AD$10*RAND()+BF99) -> 169
AC101: Period2 | AD101: 0 | AE101: =+B02Clue1(INT(0.6*$AJ101+0.4*$AJ96+RAND()*$AO101)) -> Early trend in recession, forward indicators raise new questions about the economy | AF101: =+$AE101 -> Early trend in recession, forward indicators raise new questions about the economy | AG101: Early trend in recession, forward indicators raise new questions about the economy | AH101: Early trend in recession, forward indicators raise new questions about the economy | AI101: Early trend in recession, forward indicators raise new questions about the economy | AJ101: 1 | AK101: =INT(0.4*AK96+0.6*(1+RAND()*10)) -> 2 | AL101: =+$AI$14+(AJ101-1)*$AI$16+$AI$16*RAND() -> 0.01369746729 | AO101: 7 | BF101: 0
AD102: 20.53333333 | AE102: =+B02Clue1(INT(0.6*$AJ102+0.4*$AJ97+RAND()*$AO102)) -> Early trend in recession, forward indicators raise new questions about the economy | AF102: Early trend in recession, forward indicators raise new questions about the economy | AG102: Early trend in recession, forward indicators raise new questions about the economy | AH102: Early trend in recession, forward indicators raise new questions about the economy | AI102: Early trend in recession, forward indicators raise new questions about the economy | AJ102: 1 | AK102: =+AK101 -> 2 | AL102: =+AL101 -> 0.01369746729 | AO102: 5 | BF102: =+INT($AE$8*$AD$10*RAND()+BF101) -> 22
AD103: 55.06666667 | AE103: Consumer spending suggests that a declining trend has started. | AF103: Consumer spending suggests that a declining trend has started. | AG103: Consumer spending suggests that a declining trend has started. | AH103: Consumer spending suggests that a declining trend has started. | AI103: Consumer spending suggests that a declining trend has started. | AJ103: 1 | AK103: =+AK102 -> 2 | AL103: =+AL102 -> 0.01369746729 | AO103: 3 | BF103: =+INT($AE$8*$AD$10*RAND()+BF102) -> 59
AD104: 92.4 | AE104: Inventory buildup points to signs of recession | AF104: Inventory buildup points to signs of recession | AG104: Inventory buildup points to signs of recession | AH104: Inventory buildup points to signs of recession | AI104: Inventory buildup points to signs of recession | AJ104: 1 | AK104: =+AK103 -> 2 | AL104: 0.01369746729 | AO104: 2 | BF104: =+INT($AE$8*$AD$10*RAND()+BF103) -> 99
AD105: 137.2 | AE105: Recession more likely say economists | AF105: Recession more likely say economists | AG105: Recession more likely say economists | AH105: Recession more likely say economists | AI105: Recession more likely say economists | AJ105: 1 | AK105: =+AK104 -> 2 | AL105: 0.01369746729 | AO105: 1 | BF105: =+INT($AE$8*$AD$10*RAND()+BF104) -> 147
AC106: Period3 | AD106: 0 | AE106: =+B02Clue1(INT(0.6*$AJ106+0.4*$AJ101+RAND()*$AO106)) -> Stock funds experiencing mild selling | AF106: Stock funds experiencing mild selling | AG106: Stock funds experiencing mild selling | AH106: Stock funds experiencing mild selling | AI106: Stock funds experiencing mild selling | AJ106: 4 | AK106: =INT(0.4*AK101+0.6*(1+RAND()*10)) -> 2 | AL106: =+$AI$14+(AJ106-1)*$AI$16+$AI$16*RAND() -> 0.02293641399 | AO106: 7 | BF106: 0
E107: 70.25002 | F107: 30 | AD107: 54.13333333 | AE107: Fed chairman congressional testimony provides optimism | AF107: Fed chairman congressional testimony provides optimism | AG107: Fed chairman congressional testimony provides optimism | AH107: Fed chairman congressional testimony provides optimism | AI107: Fed chairman congressional testimony provides optimism | AJ107: 4 | AK107: =+AK106 -> 2 | AL107: 0.02293641399 | AO107: 5 | BF107: =+INT($AE$8*$AD$10*RAND()+BF106) -> 58
AD108: 84 | AE108: Consumer spending suggests that a declining trend has started. | AF108: Consumer spending suggests that a declining trend has started. | AG108: Consumer spending suggests that a declining trend has started. | AH108: Consumer spending suggests that a declining trend has started. | AI108: Consumer spending suggests that a declining trend has started. | AJ108: 4 | AK108: =+AK107 -> 2 | AL108: 0.02293641399 | AO108: 3 | BF108: =+INT($AE$8*$AD$10*RAND()+BF107) -> 90
AD109: 86.8 | AE109: Early trend in recession, forward indicators raise new questions about the economy | AF109: Early trend in recession, forward indicators raise new questions about the economy | AG109: Early trend in recession, forward indicators raise new questions about the economy | AH109: Early trend in recession, forward indicators raise new questions about the economy | AI109: Early trend in recession, forward indicators raise new questions about the economy | AJ109: 4 | AK109: =+AK108 -> 2 | AL109: 0.02293641399 | AO109: 2 | BF109: =+INT($AE$8*$AD$10*RAND()+BF108) -> 93
AD110: 136.2666667 | AE110: Consumer spending suggests that a declining trend has started. | AF110: Consumer spending suggests that a declining trend has started. | AG110: Consumer spending suggests that a declining trend has started. | AH110: Consumer spending suggests that a declining trend has started. | AI110: Consumer spending suggests that a declining trend has started. | AJ110: 4 | AK110: =+AK109 -> 2 | AL110: 0.02293641399 | AO110: 1 | BF110: =+INT($AE$8*$AD$10*RAND()+BF109) -> 146
AC111: Period4 | AD111: 0 | AE111: =+B02Clue1(INT(0.6*$AJ111+0.4*$AJ106+RAND()*$AO111)) -> Indicators are reinforcing a positive economic outlook | AF111: Indicators are reinforcing a positive economic outlook | AG111: Indicators are reinforcing a positive economic outlook | AH111: Indicators are reinforcing a positive economic outlook | AI111: Indicators are reinforcing a positive economic outlook | AJ111: 4 | AK111: =INT(0.4*AK106+0.6*(1+RAND()*10)) -> 6 | AL111: =+$AI$14+(AJ111-1)*$AI$16+$AI$16*RAND() -> 0.02219127358 | AO111: 7 | BF111: 0
E112: 22.77889 | F112: 14.96512 | G112: 10.75 | H112: 14.60417 | AD112: 42 | AE112: Leading economic indicators match expectations | AF112: Leading economic indicators match expectations | AG112: Leading economic indicators match expectations | AH112: Leading economic indicators match expectations | AI112: Leading economic indicators match expectations | AJ112: 4 | AK112: =+AK111 -> 6 | AL112: 0.02219127358 | AO112: 5 | BF112: =+INT($AE$8*$AD$10*RAND()+BF111) -> 45
AD113: 63.46666667 | AE113: Geopolitical concerns starting to worry investors | AF113: Geopolitical concerns starting to worry investors | AG113: Geopolitical concerns starting to worry investors | AH113: Geopolitical concerns starting to worry investors | AI113: Geopolitical concerns starting to worry investors | AJ113: 4 | AK113: =+AK112 -> 6 | AL113: 0.02219127358 | AO113: 3 | BF113: =+INT($AE$8*$AD$10*RAND()+BF112) -> 68
AD114: 97.06666667 | AE114: Geopolitical concerns starting to worry investors | AF114: Geopolitical concerns starting to worry investors | AG114: Geopolitical concerns starting to worry investors | AH114: Geopolitical concerns starting to worry investors | AI114: Geopolitical concerns starting to worry investors | AJ114: 4 | AK114: =+AK113 -> 6 | AL114: 0.02219127358 | AO114: 2 | BF114: =+INT($AE$8*$AD$10*RAND()+BF113) -> 104
AD115: 150.2666667 | AE115: Some major corporations have started to trim work force | AF115: Some major corporations have started to trim work force | AG115: Some major corporations have started to trim work force | AH115: Some major corporations have started to trim work force | AI115: Some major corporations have started to trim work force | AJ115: 4 | AK115: =+AK114 -> 6 | AL115: 0.02219127358 | AO115: 1 | BF115: =+INT($AE$8*$AD$10*RAND()+BF114) -> 161
AC116: Period5 | AD116: 0 | AE116: =+B02Clue1(INT(0.6*$AJ116+0.4*$AJ111+RAND()*$AO116)) -> Analyst forecast increased earnings for most industries in the economy | AF116: Analyst forecast increased earnings for most industries in the economy | AG116: Analyst forecast increased earnings for most industries in the economy | AH116: Analyst forecast increased earnings for most industries in the economy | AI116: Analyst forecast increased earnings for most industries in the economy | AJ116: 6 | AK116: =INT(0.4*AK111+0.6*(1+RAND()*10)) -> 6 | AL116: =+$AI$14+(AJ116-1)*$AI$16+$AI$16*RAND() -> 0.03008090427 | AO116: 7 | BF116: 0
AD117: 46.66666667 | AE117: Sharp jump in strong GDP forecasts | AF117: Sharp jump in strong GDP forecasts | AG117: Sharp jump in strong GDP forecasts | AH117: Sharp jump in strong GDP forecasts | AI117: Sharp jump in strong GDP forecasts | AJ117: 6 | AK117: =+AK116 -> 6 | AL117: 0.03008090427 | AO117: 5 | BF117: =+INT($AE$8*$AD$10*RAND()+BF116) -> 50
AD118: 73.73333333 | AE118: Stock funds experiencing mild selling | AF118: Stock funds experiencing mild selling | AG118: Stock funds experiencing mild selling | AH118: Stock funds experiencing mild selling | AI118: Stock funds experiencing mild selling | AJ118: 6 | AK118: =+AK117 -> 6 | AL118: 0.03008090427 | AO118: 3 | BF118: =+INT($AE$8*$AD$10*RAND()+BF117) -> 79
AD119: 151.2 | AE119: Stock funds experiencing mild selling | AF119: Stock funds experiencing mild selling | AG119: Stock funds experiencing mild selling | AH119: Stock funds experiencing mild selling | AI119: Stock funds experiencing mild selling | AJ119: 6 | AK119: =+AK118 -> 6 | AL119: 0.03008090427 | AO119: 2 | BF119: =+INT($AE$8*$AD$10*RAND()+BF118) -> 162
AD120: 228.6666667 | AE120: Stock funds experiencing mild selling | AF120: Stock funds experiencing mild selling | AG120: Stock funds experiencing mild selling | AH120: Stock funds experiencing mild selling | AI120: Stock funds experiencing mild selling | AJ120: 6 | AK120: =+AK119 -> 6 | AL120: 0.03008090427 | AO120: 1 | BF120: =+INT($AE$8*$AD$10*RAND()+BF119) -> 245
AC121: Trial 5 | AD121: 0 | AE121: =+B02Clue1(INT($AJ121+RAND()*$AO121)) -> Large jump in both imports and exports plus trade deficit sharply wider | AF121: =+$AE121 -> Large jump in both imports and exports plus trade deficit sharply wider | AG121: Large jump in both imports and exports plus trade deficit sharply wider | AH121: Large jump in both imports and exports plus trade deficit sharply wider | AI121: Large jump in both imports and exports plus trade deficit sharply wider | AJ121: 9 | AK121: =INT(1+RAND()*10) -> 8 | AL121: =+$AI$14+(AJ121-1)*$AI$16+$AI$16*RAND() -> 0.04292177558 | AO121: 7 | BF121: 0
AD122: 22.4 | AE122: =+B02Clue1(INT($AJ122+RAND()*$AO122)) -> Consumer price index expected to surge | AF122: Consumer price index expected to surge | AG122: Consumer price index expected to surge | AH122: Consumer price index expected to surge | AI122: Consumer price index expected to surge | AJ122: 9 | AK122: =+AK121 -> 8 | AL122: 0.04292177558 | AO122: 5 | BF122: =+INT($AE$8*$AD$10*RAND()+BF121) -> 24
AD123: 39.2 | AE123: =+B02Clue1(INT($AJ123+RAND()*$AO123)) -> Large jump in both imports and exports plus trade deficit sharply wider | AF123: Large jump in both imports and exports plus trade deficit sharply wider | AG123: Large jump in both imports and exports plus trade deficit sharply wider | AH123: Large jump in both imports and exports plus trade deficit sharply wider | AI123: Large jump in both imports and exports plus trade deficit sharply wider | AJ123: 9 | AK123: 8 | AL123: 0.04292177558 | AO123: 3 | BF123: =+INT($AE$8*$AD$10*RAND()+BF122) -> 42
AD124: 119.4666667 | AE124: =+B02Clue1(INT($AJ124+RAND()*$AO124)) -> Inflationary expectations increased sharply | AF124: Inflationary expectations increased sharply | AG124: Inflationary expectations increased sharply | AH124: Inflationary expectations increased sharply | AI124: Inflationary expectations increased sharply | AJ124: 9 | AK124: 8 | AL124: 0.04292177558 | AO124: 2 | BF124: =+INT($AE$8*$AD$10*RAND()+BF123) -> 128
AD125: 136.2666667 | AE125: =+B02Clue1(INT($AJ125+RAND()*$AO125)) -> Sharp jump in strong GDP forecasts | AF125: Sharp jump in strong GDP forecasts | AG125: Sharp jump in strong GDP forecasts | AH125: Sharp jump in strong GDP forecasts | AI125: Sharp jump in strong GDP forecasts | AJ125: 9 | AK125: 8 | AL125: 0.04292177558 | AO125: 1 | BF125: =+INT($AE$8*$AD$10*RAND()+BF124) -> 146
AC126: Period2 | AD126: 0 | AE126: =+B02Clue1(INT(0.6*$AJ126+0.4*$AJ121+RAND()*$AO126)) -> Large jump in both imports and exports plus trade deficit sharply wider | AF126: Large jump in both imports and exports plus trade deficit sharply wider | AG126: Large jump in both imports and exports plus trade deficit sharply wider | AH126: Large jump in both imports and exports plus trade deficit sharply wider | AI126: Large jump in both imports and exports plus trade deficit sharply wider | AJ126: 7 | AK126: =INT(0.4*AK121+0.6*(1+RAND()*10)) -> 6 | AL126: =+$AI$14+(AJ126-1)*$AI$16+$AI$16*RAND() -> 0.03617355619 | AO126: 7 | BF126: 0
AD127: 54.13333333 | AE127: =+B02Clue1(INT(0.6*$AJ127+0.4*$AJ122+RAND()*$AO127)) -> Very strong and unexpected surge in the producer price index | AF127: Very strong and unexpected surge in the producer price index | AG127: Very strong and unexpected surge in the producer price index | AH127: Very strong and unexpected surge in the producer price index | AI127: Very strong and unexpected surge in the producer price index | AJ127: 7 | AK127: =+AK126 -> 6 | AL127: =+AL126 -> 0.03617355619 | AO127: 5 | BF127: =+INT($AE$8*$AD$10*RAND()+BF126) -> 58
AD128: 134.4 | AE128: Inflationary expectations increased sharply | AF128: Inflationary expectations increased sharply | AG128: Inflationary expectations increased sharply | AH128: Inflationary expectations increased sharply | AI128: Inflationary expectations increased sharply | AJ128: 7 | AK128: =+AK127 -> 6 | AL128: =+AL127 -> 0.03617355619 | AO128: 3 | BF128: =+INT($AE$8*$AD$10*RAND()+BF127) -> 144
AD129: 136.2666667 | AE129: Factory orders expected to increase sharply | AF129: Factory orders expected to increase sharply | AG129: Factory orders expected to increase sharply | AH129: Factory orders expected to increase sharply | AI129: Factory orders expected to increase sharply | AJ129: 7 | AK129: =+AK128 -> 6 | AL129: 0.03617355619 | AO129: 2 | BF129: =+INT($AE$8*$AD$10*RAND()+BF128) -> 146
AD130: 154 | AE130: Factory orders expected to increase sharply | AF130: Factory orders expected to increase sharply | AG130: Factory orders expected to increase sharply | AH130: Factory orders expected to increase sharply | AI130: Factory orders expected to increase sharply | AJ130: 7 | AK130: =+AK129 -> 6 | AL130: 0.03617355619 | AO130: 1 | BF130: =+INT($AE$8*$AD$10*RAND()+BF129) -> 165
AC131: Period3 | AD131: 0 | AE131: =+B02Clue1(INT(0.6*$AJ131+0.4*$AJ126+RAND()*$AO131)) -> Fed chairman congressional testimony provides optimism | AF131: Fed chairman congressional testimony provides optimism | AG131: Fed chairman congressional testimony provides optimism | AH131: Fed chairman congressional testimony provides optimism | AI131: Fed chairman congressional testimony provides optimism | AJ131: 3 | AK131: =INT(0.4*AK126+0.6*(1+RAND()*10)) -> 4 | AL131: =+$AI$14+(AJ131-1)*$AI$16+$AI$16*RAND() -> 0.02121544425 | AO131: 7 | BF131: 0
AD132: 77.46666667 | AE132: Stock funds experiencing mild selling | AF132: Stock funds experiencing mild selling | AG132: Stock funds experiencing mild selling | AH132: Stock funds experiencing mild selling | AI132: Stock funds experiencing mild selling | AJ132: 3 | AK132: =+AK131 -> 4 | AL132: 0.02121544425 | AO132: 5 | BF132: =+INT($AE$8*$AD$10*RAND()+BF131) -> 83
AD133: 119.4666667 | AE133: Stock funds experiencing mild selling | AF133: Stock funds experiencing mild selling | AG133: Stock funds experiencing mild selling | AH133: Stock funds experiencing mild selling | AI133: Stock funds experiencing mild selling | AJ133: 3 | AK133: =+AK132 -> 4 | AL133: 0.02121544425 | AO133: 3 | BF133: =+INT($AE$8*$AD$10*RAND()+BF132) -> 128
AD134: 194.1333333 | AE134: Some major corporations have started to trim work force | AF134: Some major corporations have started to trim work force | AG134: Some major corporations have started to trim work force | AH134: Some major corporations have started to trim work force | AI134: Some major corporations have started to trim work force | AJ134: 3 | AK134: =+AK133 -> 4 | AL134: 0.02121544425 | AO134: 2 | BF134: =+INT($AE$8*$AD$10*RAND()+BF133) -> 208
AD135: 238.9333333 | AE135: Stock funds experiencing mild selling | AF135: Stock funds experiencing mild selling | AG135: Stock funds experiencing mild selling | AH135: Stock funds experiencing mild selling | AI135: Stock funds experiencing mild selling | AJ135: 3 | AK135: =+AK134 -> 4 | AL135: 0.02121544425 | AO135: 1 | BF135: =+INT($AE$8*$AD$10*RAND()+BF134) -> 256
AC136: Period4 | AD136: 0 | AE136: =+B02Clue1(INT(0.6*$AJ136+0.4*$AJ131+RAND()*$AO136)) -> Sharp jump in strong GDP forecasts | AF136: Sharp jump in strong GDP forecasts | AG136: Sharp jump in strong GDP forecasts | AH136: Sharp jump in strong GDP forecasts | AI136: Sharp jump in strong GDP forecasts | AJ136: 4 | AK136: =INT(0.4*AK131+0.6*(1+RAND()*10)) -> 2 | AL136: =+$AI$14+(AJ136-1)*$AI$16+$AI$16*RAND() -> 0.02422534162 | AO136: 7 | BF136: 0
AD137: 41.06666667 | AE137: Indicators are reinforcing a positive economic outlook | AF137: Indicators are reinforcing a positive economic outlook | AG137: Indicators are reinforcing a positive economic outlook | AH137: Indicators are reinforcing a positive economic outlook | AI137: Indicators are reinforcing a positive economic outlook | AJ137: 4 | AK137: =+AK136 -> 2 | AL137: 0.02422534162 | AO137: 5 | BF137: =+INT($AE$8*$AD$10*RAND()+BF136) -> 44
AD138: 116.6666667 | AE138: Fed chairman congressional testimony provides optimism | AF138: Fed chairman congressional testimony provides optimism | AG138: Fed chairman congressional testimony provides optimism | AH138: Fed chairman congressional testimony provides optimism | AI138: Fed chairman congressional testimony provides optimism | AJ138: 4 | AK138: =+AK137 -> 2 | AL138: 0.02422534162 | AO138: 3 | BF138: =+INT($AE$8*$AD$10*RAND()+BF137) -> 125
AD139: 186.6666667 | AE139: Stock funds experiencing mild selling | AF139: Stock funds experiencing mild selling | AG139: Stock funds experiencing mild selling | AH139: Stock funds experiencing mild selling | AI139: Stock funds experiencing mild selling | AJ139: 4 | AK139: =+AK138 -> 2 | AL139: 0.02422534162 | AO139: 2 | BF139: =+INT($AE$8*$AD$10*RAND()+BF138) -> 200
AD140: 227.7333333 | AE140: Early trend in recession, forward indicators raise new questions about the economy | AF140: Early trend in recession, forward indicators raise new questions about the economy | AG140: Early trend in recession, forward indicators raise new questions about the economy | AH140: Early trend in recession, forward indicators raise new questions about the economy | AI140: Early trend in recession, forward indicators raise new questions about the economy | AJ140: 4 | AK140: =+AK139 -> 2 | AL140: 0.02422534162 | AO140: 1 | BF140: =+INT($AE$8*$AD$10*RAND()+BF139) -> 244
AC141: Period5 | AD141: 0 | AE141: =+B02Clue1(INT(0.6*$AJ141+0.4*$AJ136+RAND()*$AO141)) -> Factory orders expected to increase sharply | AF141: =+$AE141 -> Factory orders expected to increase sharply | AG141: Factory orders expected to increase sharply | AH141: Factory orders expected to increase sharply | AI141: Factory orders expected to increase sharply | AJ141: 3 | AK141: =INT(0.4*AK136+0.6*(1+RAND()*10)) -> 5 | AL141: =+$AI$14+(AJ141-1)*$AI$16+$AI$16*RAND() -> 0.02016770386 | AO141: 7 | BF141: 0
AD142: 6.533333333 | AE142: Leading economic indicators match expectations | AF142: Leading economic indicators match expectations | AG142: Leading economic indicators match expectations | AH142: Leading economic indicators match expectations | AI142: Leading economic indicators match expectations | AJ142: 3 | AK142: =+AK141 -> 5 | AL142: 0.02016770386 | AO142: 5 | BF142: =+INT($AE$8*$AD$10*RAND()+BF141) -> 7
AD143: 14 | AE143: Geopolitical concerns starting to worry investors | AF143: Geopolitical concerns starting to worry investors | AG143: Geopolitical concerns starting to worry investors | AH143: Geopolitical concerns starting to worry investors | AI143: Geopolitical concerns starting to worry investors | AJ143: 3 | AK143: =+AK142 -> 5 | AL143: 0.02016770386 | AO143: 3 | BF143: =+INT($AE$8*$AD$10*RAND()+BF142) -> 15
AD144: 85.86666667 | AE144: Some major corporations have started to trim work force | AF144: Some major corporations have started to trim work force | AG144: Some major corporations have started to trim work force | AH144: Some major corporations have started to trim work force | AI144: Some major corporations have started to trim work force | AJ144: 3 | AK144: =+AK143 -> 5 | AL144: 0.02016770386 | AO144: 2 | BF144: =+INT($AE$8*$AD$10*RAND()+BF143) -> 92
AD145: 94.26666667 | AE145: Some major corporations have started to trim work force | AF145: Some major corporations have started to trim work force | AG145: Some major corporations have started to trim work force | AH145: Some major corporations have started to trim work force | AI145: Some major corporations have started to trim work force | AJ145: 3 | AK145: =+AK144 -> 5 | AL145: 0.02016770386 | AO145: 1 | BF145: =+INT($AE$8*$AD$10*RAND()+BF144) -> 101
AC146: Trial 6 | AD146: 0 | AE146: =+B02Clue1(INT($AJ146+RAND()*$AO146)) -> Much stronger economic growth is currently being forecast | AF146: Much stronger economic growth is currently being forecast | AG146: Much stronger economic growth is currently being forecast | AH146: Much stronger economic growth is currently being forecast | AI146: Much stronger economic growth is currently being forecast | AJ146: 4 | AK146: =INT(1+RAND()*10) -> 8 | AL146: =+$AI$14+(AJ146-1)*$AI$16+$AI$16*RAND() -> 0.02400689827 | AO146: 7 | BF146: 0
AD147: 65.33333333 | AE147: =+B02Clue1(INT($AJ147+RAND()*$AO147)) -> Stock funds experiencing mild selling | AF147: Stock funds experiencing mild selling | AG147: Stock funds experiencing mild selling | AH147: Stock funds experiencing mild selling | AI147: Stock funds experiencing mild selling | AJ147: 4 | AK147: =+AK146 -> 8 | AL147: 0.02400689827 | AO147: 5 | BF147: =+INT($AE$8*$AD$10*RAND()+BF146) -> 70
AD148: 115.7333333 | AE148: =+B02Clue1(INT($AJ148+RAND()*$AO148)) -> Geopolitical concerns starting to worry investors | AF148: Geopolitical concerns starting to worry investors | AG148: Geopolitical concerns starting to worry investors | AH148: Geopolitical concerns starting to worry investors | AI148: Geopolitical concerns starting to worry investors | AJ148: 4 | AK148: 8 | AL148: 0.02400689827 | AO148: 3 | BF148: =+INT($AE$8*$AD$10*RAND()+BF147) -> 124
AD149: 162.4 | AE149: =+B02Clue1(INT($AJ149+RAND()*$AO149)) -> Some major corporations have started to trim work force | AF149: Some major corporations have started to trim work force | AG149: Some major corporations have started to trim work force | AH149: Some major corporations have started to trim work force | AI149: Some major corporations have started to trim work force | AJ149: 4 | AK149: 8 | AL149: 0.02400689827 | AO149: 2 | BF149: =+INT($AE$8*$AD$10*RAND()+BF148) -> 174
AD150: 229.6 | AE150: =+B02Clue1(INT($AJ150+RAND()*$AO150)) -> Some major corporations have started to trim work force | AF150: Some major corporations have started to trim work force | AG150: Some major corporations have started to trim work force | AH150: Some major corporations have started to trim work force | AI150: Some major corporations have started to trim work force | AJ150: 4 | AK150: 8 | AL150: 0.02400689827 | AO150: 1 | BF150: =+INT($AE$8*$AD$10*RAND()+BF149) -> 246
AC151: Period2 | AD151: =+(BF151/300)*$AD$18 -> 0 | AE151: =+B02Clue1(INT(0.6*$AJ151+0.4*$AJ146+RAND()*$AO151)) -> Much stronger economic growth is currently being forecast | AF151: Much stronger economic growth is currently being forecast | AG151: Much stronger economic growth is currently being forecast | AH151: Much stronger economic growth is currently being forecast | AI151: Much stronger economic growth is currently being forecast | AJ151: 6 | AK151: =INT(0.4*AK146+0.6*(1+RAND()*10)) -> 4 | AL151: =+$AI$14+(AJ151-1)*$AI$16+$AI$16*RAND() -> 0.03005939402 | AO151: 7 | BF151: 0
AD152: 24.26666667 | AE152: =+B02Clue1(INT(0.6*$AJ152+0.4*$AJ147+RAND()*$AO152)) -> Leading economic indicators match expectations | AF152: Leading economic indicators match expectations | AG152: Leading economic indicators match expectations | AH152: Leading economic indicators match expectations | AI152: Leading economic indicators match expectations | AJ152: 6 | AK152: =+AK151 -> 4 | AL152: =+AL151 -> 0.03005939402 | AO152: 5 | BF152: =+INT($AE$8*$AD$10*RAND()+BF151) -> 26
AD153: 85.86666667 | AE153: Fed chairman congressional testimony provides optimism | AF153: Fed chairman congressional testimony provides optimism | AG153: Fed chairman congressional testimony provides optimism | AH153: Fed chairman congressional testimony provides optimism | AI153: Fed chairman congressional testimony provides optimism | AJ153: 6 | AK153: =+AK152 -> 4 | AL153: =+AL152 -> 0.03005939402 | AO153: 3 | BF153: =+INT($AE$8*$AD$10*RAND()+BF152) -> 92
AD154: 147.4666667 | AE154: Fed chairman congressional testimony provides optimism | AF154: Fed chairman congressional testimony provides optimism | AG154: Fed chairman congressional testimony provides optimism | AH154: Fed chairman congressional testimony provides optimism | AI154: Fed chairman congressional testimony provides optimism | AJ154: 6 | AK154: =+AK153 -> 4 | AL154: 0.03005939402 | AO154: 2 | BF154: =+INT($AE$8*$AD$10*RAND()+BF153) -> 158
AD155: 229.6 | AE155: Leading economic indicators match expectations | AF155: Leading economic indicators match expectations | AG155: Leading economic indicators match expectations | AH155: Leading economic indicators match expectations | AI155: Leading economic indicators match expectations | AJ155: 6 | AK155: =+AK154 -> 4 | AL155: 0.03005939402 | AO155: 1 | BF155: =+INT($AE$8*$AD$10*RAND()+BF154) -> 246
AC156: Period3 | AD156: 0 | AE156: =+B02Clue1(INT(0.6*$AJ156+0.4*$AJ151+RAND()*$AO156)) -> Very strong and unexpected surge in the producer price index | AF156: Very strong and unexpected surge in the producer price index | AG156: Very strong and unexpected surge in the producer price index | AH156: Very strong and unexpected surge in the producer price index | AI156: Very strong and unexpected surge in the producer price index | AJ156: 5 | AK156: =INT(0.4*AK151+0.6*(1+RAND()*10)) -> 2 | AL156: =+$AI$14+(AJ156-1)*$AI$16+$AI$16*RAND() -> 0.02980830337 | AO156: =+AO151 -> 7 | BF156: 0
AD157: 68.13333333 | AE157: Sharp jump in strong GDP forecasts | AF157: Sharp jump in strong GDP forecasts | AG157: Sharp jump in strong GDP forecasts | AH157: Sharp jump in strong GDP forecasts | AI157: Sharp jump in strong GDP forecasts | AJ157: 5 | AK157: =+AK156 -> 2 | AL157: 0.02980830337 | AO157: 5 | BF157: =+INT($AE$8*$AD$10*RAND()+BF156) -> 73
AD158: 117.6 | AE158: Indicators are reinforcing a positive economic outlook | AF158: Indicators are reinforcing a positive economic outlook | AG158: Indicators are reinforcing a positive economic outlook | AH158: Indicators are reinforcing a positive economic outlook | AI158: Indicators are reinforcing a positive economic outlook | AJ158: 5 | AK158: =+AK157 -> 2 | AL158: 0.02980830337 | AO158: 3 | BF158: =+INT($AE$8*$AD$10*RAND()+BF157) -> 126
AD159: 132.5333333 | AE159: Leading economic indicators match expectations | AF159: Leading economic indicators match expectations | AG159: Leading economic indicators match expectations | AH159: Leading economic indicators match expectations | AI159: Leading economic indicators match expectations | AJ159: 5 | AK159: =+AK158 -> 2 | AL159: 0.02980830337 | AO159: 2 | BF159: =+INT($AE$8*$AD$10*RAND()+BF158) -> 142
AD160: 212.8 | AE160: Leading indicators suggest positive economic outlook | AF160: Leading indicators suggest positive economic outlook | AG160: Leading indicators suggest positive economic outlook | AH160: Leading indicators suggest positive economic outlook | AI160: Leading indicators suggest positive economic outlook | AJ160: 5 | AK160: =+AK159 -> 2 | AL160: 0.02980830337 | AO160: 1 | BF160: =+INT($AE$8*$AD$10*RAND()+BF159) -> 228
AC161: Period4 | AD161: 0 | AE161: =+B02Clue1(INT(0.6*$AJ161+0.4*$AJ156+RAND()*$AO161)) -> Indicators are reinforcing a positive economic outlook | AF161: =+$AE161 -> Indicators are reinforcing a positive economic outlook | AG161: Indicators are reinforcing a positive economic outlook | AH161: Indicators are reinforcing a positive economic outlook | AI161: Indicators are reinforcing a positive economic outlook | AJ161: 5 | AK161: =INT(0.4*AK156+0.6*(1+RAND()*10)) -> 2 | AL161: =+$AI$14+(AJ161-1)*$AI$16+$AI$16*RAND() -> 0.02781735425 | AO161: 7 | BF161: 0
AD162: 75.6 | AE162: Geopolitical investment concerns are rapidly fading | AF162: Geopolitical investment concerns are rapidly fading | AG162: Geopolitical investment concerns are rapidly fading | AH162: Geopolitical investment concerns are rapidly fading | AI162: Geopolitical investment concerns are rapidly fading | AJ162: 5 | AK162: =+AK161 -> 2 | AL162: 0.02781735425 | AO162: 5 | BF162: =+INT($AE$8*$AD$10*RAND()+BF161) -> 81
AD163: 79.33333333 | AE163: Geopolitical investment concerns are rapidly fading | AF163: Geopolitical investment concerns are rapidly fading | AG163: Geopolitical investment concerns are rapidly fading | AH163: Geopolitical investment concerns are rapidly fading | AI163: Geopolitical investment concerns are rapidly fading | AJ163: 5 | AK163: =+AK162 -> 2 | AL163: 0.02781735425 | AO163: 3 | BF163: =+INT($AE$8*$AD$10*RAND()+BF162) -> 85
AD164: 100.8 | AE164: Stock funds experiencing mild selling | AF164: Stock funds experiencing mild selling | AG164: Stock funds experiencing mild selling | AH164: Stock funds experiencing mild selling | AI164: Stock funds experiencing mild selling | AJ164: 5 | AK164: =+AK163 -> 2 | AL164: 0.02781735425 | AO164: 2 | BF164: =+INT($AE$8*$AD$10*RAND()+BF163) -> 108
AD165: 112 | AE165: Leading economic indicators match expectations | AF165: Leading economic indicators match expectations | AG165: Leading economic indicators match expectations | AH165: Leading economic indicators match expectations | AI165: Leading economic indicators match expectations | AJ165: 5 | AK165: =+AK164 -> 2 | AL165: 0.02781735425 | AO165: 1 | BF165: =+INT($AE$8*$AD$10*RAND()+BF164) -> 120
AC166: Period5 | AD166: 0 | AE166: =+B02Clue1(INT(0.6*$AJ166+0.4*$AJ161+RAND()*$AO166)) -> Large jump in both imports and exports plus trade deficit sharply wider | AF166: Large jump in both imports and exports plus trade deficit sharply wider | AG166: Large jump in both imports and exports plus trade deficit sharply wider | AH166: Large jump in both imports and exports plus trade deficit sharply wider | AI166: Large jump in both imports and exports plus trade deficit sharply wider | AJ166: 3 | AK166: =INT(0.4*AK161+0.6*(1+RAND()*10)) -> 3 | AL166: =+$AI$14+(AJ166-1)*$AI$16+$AI$16*RAND() -> 0.02197019738 | AO166: 7 | BF166: 0
AD167: 31.73333333 | AE167: Some major corporations have started to trim work force | AF167: Some major corporations have started to trim work force | AG167: Some major corporations have started to trim work force | AH167: Some major corporations have started to trim work force | AI167: Some major corporations have started to trim work force | AJ167: 3 | AK167: =+AK166 -> 3 | AL167: 0.02197019738 | AO167: 5 | BF167: =+INT($AE$8*$AD$10*RAND()+BF166) -> 34
AD168: 70.93333333 | AE168: Fed chairman congressional testimony provides optimism | AF168: Fed chairman congressional testimony provides optimism | AG168: Fed chairman congressional testimony provides optimism | AH168: Fed chairman congressional testimony provides optimism | AI168: Fed chairman congressional testimony provides optimism | AJ168: 3 | AK168: =+AK167 -> 3 | AL168: 0.02197019738 | AO168: 3 | BF168: =+INT($AE$8*$AD$10*RAND()+BF167) -> 76
AD169: 77.46666667 | AE169: Some major corporations have started to trim work force | AF169: Some major corporations have started to trim work force | AG169: Some major corporations have started to trim work force | AH169: Some major corporations have started to trim work force | AI169: Some major corporations have started to trim work force | AJ169: 3 | AK169: =+AK168 -> 3 | AL169: 0.02197019738 | AO169: 2 | BF169: =+INT($AE$8*$AD$10*RAND()+BF168) -> 83
AD170: 115.7333333 | AE170: Some major corporations have started to trim work force | AF170: Some major corporations have started to trim work force | AG170: Some major corporations have started to trim work force | AH170: Some major corporations have started to trim work force | AI170: Some major corporations have started to trim work force | AJ170: 3 | AK170: =+AK169 -> 3 | AL170: 0.02197019738 | AO170: 1 | BF170: =+INT($AE$8*$AD$10*RAND()+BF169) -> 124
AC171: Trial 7 | AD171: 0 | AE171: =+B02Clue1(INT($AJ171+RAND()*$AO171)) -> Consumer price index expected to surge | AF171: Consumer price index expected to surge | AG171: Consumer price index expected to surge | AH171: Consumer price index expected to surge | AI171: Consumer price index expected to surge | AJ171: 7 | AK171: =INT(1+RAND()*10) -> 3 | AL171: =+$AI$14+(AJ171-1)*$AI$16+$AI$16*RAND() -> 0.03794451852 | AO171: 7 | BF171: 0
AD172: 18.66666667 | AE172: =+B02Clue1(INT($AJ172+RAND()*$AO172)) -> Analyst forecast increased earnings for most industries in the economy | AF172: Analyst forecast increased earnings for most industries in the economy | AG172: Analyst forecast increased earnings for most industries in the economy | AH172: Analyst forecast increased earnings for most industries in the economy | AI172: Analyst forecast increased earnings for most industries in the economy | AJ172: 7 | AK172: =+AK171 -> 3 | AL172: 0.03794451852 | AO172: 5 | BF172: =+INT($AE$8*$AD$10*RAND()+BF171) -> 20
AD173: 19.6 | AE173: =+B02Clue1(INT($AJ173+RAND()*$AO173)) -> Much stronger economic growth is currently being forecast | AF173: Much stronger economic growth is currently being forecast | AG173: Much stronger economic growth is currently being forecast | AH173: Much stronger economic growth is currently being forecast | AI173: Much stronger economic growth is currently being forecast | AJ173: 7 | AK173: 3 | AL173: 0.03794451852 | AO173: 3 | BF173: =+INT($AE$8*$AD$10*RAND()+BF172) -> 21
AD174: 98.93333333 | AE174: =+B02Clue1(INT($AJ174+RAND()*$AO174)) -> Geopolitical investment concerns are rapidly fading | AF174: Geopolitical investment concerns are rapidly fading | AG174: Geopolitical investment concerns are rapidly fading | AH174: Geopolitical investment concerns are rapidly fading | AI174: Geopolitical investment concerns are rapidly fading | AJ174: 7 | AK174: 3 | AL174: 0.03794451852 | AO174: 2 | BF174: =+INT($AE$8*$AD$10*RAND()+BF173) -> 106
AD175: 137.2 | AE175: =+B02Clue1(INT($AJ175+RAND()*$AO175)) -> Indicators are reinforcing a positive economic outlook | AF175: Indicators are reinforcing a positive economic outlook | AG175: Indicators are reinforcing a positive economic outlook | AH175: Indicators are reinforcing a positive economic outlook | AI175: Indicators are reinforcing a positive economic outlook | AJ175: 7 | AK175: 3 | AL175: 0.03794451852 | AO175: 1 | BF175: =+INT($AE$8*$AD$10*RAND()+BF174) -> 147
AC176: Period2 | AD176: 0 | AE176: =+B02Clue1(INT(0.6*$AJ176+0.4*$AJ171+RAND()*$AO176)) -> Consumer price index expected to surge | AF176: Consumer price index expected to surge | AG176: Consumer price index expected to surge | AH176: Consumer price index expected to surge | AI176: Consumer price index expected to surge | AJ176: 9 | AK176: =INT(0.4*AK171+0.6*(1+RAND()*10)) -> 6 | AL176: =+$AI$14+(AJ176-1)*$AI$16+$AI$16*RAND() -> 0.04303380355 | AO176: 7 | BF176: 0
AD177: 0 | AE177: =+B02Clue1(INT(0.6*$AJ177+0.4*$AJ172+RAND()*$AO177)) -> Analyst forecast increased earnings for most industries in the economy | AF177: Analyst forecast increased earnings for most industries in the economy | AG177: Analyst forecast increased earnings for most industries in the economy | AH177: Analyst forecast increased earnings for most industries in the economy | AI177: Analyst forecast increased earnings for most industries in the economy | AJ177: 9 | AK177: =+AK176 -> 6 | AL177: =+AL176 -> 0.04303380355 | AO177: 5 | BF177: =+INT($AE$8*$AD$10*RAND()+BF176) -> 0
AD178: 70.93333333 | AE178: Analyst forecast increased earnings for most industries in the economy | AF178: Analyst forecast increased earnings for most industries in the economy | AG178: Analyst forecast increased earnings for most industries in the economy | AH178: Analyst forecast increased earnings for most industries in the economy | AI178: Analyst forecast increased earnings for most industries in the economy | AJ178: 9 | AK178: =+AK177 -> 6 | AL178: =+AL177 -> 0.04303380355 | AO178: 3 | BF178: =+INT($AE$8*$AD$10*RAND()+BF177) -> 76
AD179: 122.2666667 | AE179: Factory orders expected to increase sharply | AF179: Factory orders expected to increase sharply | AG179: Factory orders expected to increase sharply | AH179: Factory orders expected to increase sharply | AI179: Factory orders expected to increase sharply | AJ179: 9 | AK179: =+AK178 -> 6 | AL179: 0.04303380355 | AO179: 2 | BF179: =+INT($AE$8*$AD$10*RAND()+BF178) -> 131
AD180: 136.2666667 | AE180: Much stronger economic growth is currently being forecast | AF180: Much stronger economic growth is currently being forecast | AG180: Much stronger economic growth is currently being forecast | AH180: Much stronger economic growth is currently being forecast | AI180: Much stronger economic growth is currently being forecast | AJ180: 9 | AK180: =+AK179 -> 6 | AL180: 0.04303380355 | AO180: 1 | BF180: =+INT($AE$8*$AD$10*RAND()+BF179) -> 146
AC181: Period3 | AD181: 0 | AE181: =+B02Clue1(INT(0.6*$AJ181+0.4*$AJ176+RAND()*$AO181)) -> Consumer price index expected to surge | AF181: =+$AE181 -> Consumer price index expected to surge | AG181: Consumer price index expected to surge | AH181: Consumer price index expected to surge | AI181: Consumer price index expected to surge | AJ181: 9 | AK181: =INT(0.4*AK176+0.6*(1+RAND()*10)) -> 8 | AL181: =+$AI$14+(AJ181-1)*$AI$16+$AI$16*RAND() -> 0.04381738408 | AO181: 7 | BF181: 0
AD182: 35.46666667 | AE182: Sharp jump in strong GDP forecasts | AF182: Sharp jump in strong GDP forecasts | AG182: Sharp jump in strong GDP forecasts | AH182: Sharp jump in strong GDP forecasts | AI182: Sharp jump in strong GDP forecasts | AJ182: 9 | AK182: =+AK181 -> 8 | AL182: 0.04381738408 | AO182: 5 | BF182: =+INT($AE$8*$AD$10*RAND()+BF181) -> 38
AD183: 118.5333333 | AE183: Inflationary expectations increased sharply | AF183: Inflationary expectations increased sharply | AG183: Inflationary expectations increased sharply | AH183: Inflationary expectations increased sharply | AI183: Inflationary expectations increased sharply | AJ183: 9 | AK183: =+AK182 -> 8 | AL183: 0.04381738408 | AO183: 3 | BF183: =+INT($AE$8*$AD$10*RAND()+BF182) -> 127
AD184: 178.2666667 | AE184: Large jump in both imports and exports plus trade deficit sharply wider | AF184: Large jump in both imports and exports plus trade deficit sharply wider | AG184: Large jump in both imports and exports plus trade deficit sharply wider | AH184: Large jump in both imports and exports plus trade deficit sharply wider | AI184: Large jump in both imports and exports plus trade deficit sharply wider | AJ184: 9 | AK184: =+AK183 -> 8 | AL184: 0.04381738408 | AO184: 2 | BF184: =+INT($AE$8*$AD$10*RAND()+BF183) -> 191
AD185: 221.2 | AE185: Sharp jump in strong GDP forecasts | AF185: Sharp jump in strong GDP forecasts | AG185: Sharp jump in strong GDP forecasts | AH185: Sharp jump in strong GDP forecasts | AI185: Sharp jump in strong GDP forecasts | AJ185: 9 | AK185: =+AK184 -> 8 | AL185: 0.04381738408 | AO185: 1 | BF185: =+INT($AE$8*$AD$10*RAND()+BF184) -> 237
AC186: Period4 | AD186: 0 | AE186: =+B02Clue1(INT(0.6*$AJ186+0.4*$AJ181+RAND()*$AO186)) -> Geopolitical investment concerns are rapidly fading | AF186: Geopolitical investment concerns are rapidly fading | AG186: Geopolitical investment concerns are rapidly fading | AH186: Geopolitical investment concerns are rapidly fading | AI186: Geopolitical investment concerns are rapidly fading | AJ186: 5 | AK186: =INT(0.4*AK181+0.6*(1+RAND()*10)) -> 4 | AL186: =+$AI$14+(AJ186-1)*$AI$16+$AI$16*RAND() -> 0.02671188527 | AO186: 7 | BF186: 0
AD187: 42 | AE187: Indicators are reinforcing a positive economic outlook | AF187: Indicators are reinforcing a positive economic outlook | AG187: Indicators are reinforcing a positive economic outlook | AH187: Indicators are reinforcing a positive economic outlook | AI187: Indicators are reinforcing a positive economic outlook | AJ187: 5 | AK187: =+AK186 -> 4 | AL187: 0.02671188527 | AO187: 5 | BF187: =+INT($AE$8*$AD$10*RAND()+BF186) -> 45
AD188: 118.5333333 | AE188: Geopolitical investment concerns are rapidly fading | AF188: Geopolitical investment concerns are rapidly fading | AG188: Geopolitical investment concerns are rapidly fading | AH188: Geopolitical investment concerns are rapidly fading | AI188: Geopolitical investment concerns are rapidly fading | AJ188: 5 | AK188: =+AK187 -> 4 | AL188: 0.02671188527 | AO188: 3 | BF188: =+INT($AE$8*$AD$10*RAND()+BF187) -> 127
AD189: 126.9333333 | AE189: Factory orders expected to increase sharply | AF189: Factory orders expected to increase sharply | AG189: Factory orders expected to increase sharply | AH189: Factory orders expected to increase sharply | AI189: Factory orders expected to increase sharply | AJ189: 5 | AK189: =+AK188 -> 4 | AL189: 0.02671188527 | AO189: 2 | BF189: =+INT($AE$8*$AD$10*RAND()+BF188) -> 136
AD190: 154 | AE190: Indicators are reinforcing a positive economic outlook | AF190: Indicators are reinforcing a positive economic outlook | AG190: Indicators are reinforcing a positive economic outlook | AH190: Indicators are reinforcing a positive economic outlook | AI190: Indicators are reinforcing a positive economic outlook | AJ190: 5 | AK190: =+AK189 -> 4 | AL190: 0.02671188527 | AO190: 1 | BF190: =+INT($AE$8*$AD$10*RAND()+BF189) -> 165
AC191: Period5 | AD191: 0 | AE191: =+B02Clue1(INT(0.6*$AJ191+0.4*$AJ186+RAND()*$AO191)) -> Consumer price index expected to surge | AF191: Consumer price index expected to surge | AG191: Consumer price index expected to surge | AH191: Consumer price index expected to surge | AI191: Consumer price index expected to surge | AJ191: 7 | AK191: =INT(0.4*AK186+0.6*(1+RAND()*10)) -> 3 | AL191: =+$AI$14+(AJ191-1)*$AI$16+$AI$16*RAND() -> 0.03470579005 | AO191: 7 | BF191: 0
AD192: 67.2 | AE192: Sharp jump in strong GDP forecasts | AF192: Sharp jump in strong GDP forecasts | AG192: Sharp jump in strong GDP forecasts | AH192: Sharp jump in strong GDP forecasts | AI192: Sharp jump in strong GDP forecasts | AJ192: 7 | AK192: =+AK191 -> 3 | AL192: 0.03470579005 | AO192: 5 | BF192: =+INT($AE$8*$AD$10*RAND()+BF191) -> 72
AD193: 99.86666667 | AE193: Analyst forecast increased earnings for most industries in the economy | AF193: Analyst forecast increased earnings for most industries in the economy | AG193: Analyst forecast increased earnings for most industries in the economy | AH193: Analyst forecast increased earnings for most industries in the economy | AI193: Analyst forecast increased earnings for most industries in the economy | AJ193: 7 | AK193: =+AK192 -> 3 | AL193: 0.03470579005 | AO193: 3 | BF193: =+INT($AE$8*$AD$10*RAND()+BF192) -> 107
AD194: 123.2 | AE194: Indicators are reinforcing a positive economic outlook | AF194: Indicators are reinforcing a positive economic outlook | AG194: Indicators are reinforcing a positive economic outlook | AH194: Indicators are reinforcing a positive economic outlook | AI194: Indicators are reinforcing a positive economic outlook | AJ194: 7 | AK194: =+AK193 -> 3 | AL194: 0.03470579005 | AO194: 2 | BF194: =+INT($AE$8*$AD$10*RAND()+BF193) -> 132
AD195: 196 | AE195: Leading indicators suggest positive economic outlook | AF195: Leading indicators suggest positive economic outlook | AG195: Leading indicators suggest positive economic outlook | AH195: Leading indicators suggest positive economic outlook | AI195: Leading indicators suggest positive economic outlook | AJ195: 7 | AK195: =+AK194 -> 3 | AL195: 0.03470579005 | AO195: 1 | BF195: =+INT($AE$8*$AD$10*RAND()+BF194) -> 210
AC196: Trial 8 | AD196: 0 | AE196: =+B02Clue1(INT($AJ196+RAND()*$AO196)) -> Factory orders expected to increase sharply | AF196: Factory orders expected to increase sharply | AG196: Factory orders expected to increase sharply | AH196: Factory orders expected to increase sharply | AI196: Factory orders expected to increase sharply | AJ196: 5 | AK196: =INT(1+RAND()*10) -> 8 | AL196: =+$AI$14+(AJ196-1)*$AI$16+$AI$16*RAND() -> 0.02811882597 | AO196: 7 | BF196: 0
AD197: 40.13333333 | AE197: =+B02Clue1(INT($AJ197+RAND()*$AO197)) -> Leading economic indicators match expectations | AF197: Leading economic indicators match expectations | AG197: Leading economic indicators match expectations | AH197: Leading economic indicators match expectations | AI197: Leading economic indicators match expectations | AJ197: 5 | AK197: =+AK196 -> 8 | AL197: 0.02811882597 | AO197: 5 | BF197: =+INT($AE$8*$AD$10*RAND()+BF196) -> 43
AD198: 71.86666667 | AE198: =+B02Clue1(INT($AJ198+RAND()*$AO198)) -> Indicators are reinforcing a positive economic outlook | AF198: Indicators are reinforcing a positive economic outlook | AG198: Indicators are reinforcing a positive economic outlook | AH198: Indicators are reinforcing a positive economic outlook | AI198: Indicators are reinforcing a positive economic outlook | AJ198: 5 | AK198: 8 | AL198: 0.02811882597 | AO198: 3 | BF198: =+INT($AE$8*$AD$10*RAND()+BF197) -> 77
AD199: 135.3333333 | AE199: =+B02Clue1(INT($AJ199+RAND()*$AO199)) -> Fed chairman congressional testimony provides optimism | AF199: Fed chairman congressional testimony provides optimism | AG199: Fed chairman congressional testimony provides optimism | AH199: Fed chairman congressional testimony provides optimism | AI199: Fed chairman congressional testimony provides optimism | AJ199: 5 | AK199: 8 | AL199: 0.02811882597 | AO199: 2 | BF199: =+INT($AE$8*$AD$10*RAND()+BF198) -> 145
AD200: 187.6 | AE200: =+B02Clue1(INT($AJ200+RAND()*$AO200)) -> Leading economic indicators match expectations | AF200: Leading economic indicators match expectations | AG200: Leading economic indicators match expectations | AH200: Leading economic indicators match expectations | AI200: Leading economic indicators match expectations | AJ200: 5 | AK200: 8 | AL200: 0.02811882597 | AO200: 1 | BF200: =+INT($AE$8*$AD$10*RAND()+BF199) -> 201
... 925 more rows
